Workbook

Sheet JUNIO 2020
A1: NO | B1: CEDULA | C1: NOMBRES APELLIDOS CONTRATISTA | D1: ops #año | E1: OBJETO DEL CONTRATO | F1: FECHA INICIO | G1: FECHA TERMINACION | H1: VALOR MENSUAL | I1: VALOR TOTAL | J1: RUBRO | K1: CDP | L1: RP | M1: SUPERVISOR | N1: CARGO | O1: FECHA SECOP | P1: LINK SECOP
A2: 1 | B2: 1129532724 | C2: MICHELLY SANDOVAL ACUÑA | D2: 2196-2020 | E2: EPIDEMIOLOGA COORDINACION- EMERGENCIA COVIC 19 | F2: 01 de Junio 2020 | G2: 30 de Junio de 2020 | H2: 6044000 | I2: =+H2*1 -> 6044000 | J2: HONORARIOS | K2: 2728 | L2: 3679 | M2: BETTY PERTUZ | N2: SUBGERENTE CIENTIFICO | O2: 2020-06-12 | P2: https://www.contratos.gov.co/consultas/detalleProceso.do?numConstancia=20-4-10842560
A3: =+A2+1 -> 2 | B3: 32870174 | C3: SIRLEY PAOLA PEREZ CARMONA | D3: 2197-2020 | E3: REFERENTE DE SEGURIDAD DEL PACIENTE | F3: 01 de Junio 2020 | G3: 30 de Junio de 2020 | H3: 5800000 | I3: 5800000 | J3: REMUNERACION | K3: 2729 | L3: 3680 | M3: BETTY PERTUZ | N3: SUBGERENTE CIENTIFICO | O3: 2020-06-12 | P3: https://www.contratos.gov.co/consultas/detalleProceso.do?numConstancia=20-4-10842583
A4: =+A3+1 -> 3 | B4: 1140846298 | C4: LENIN ALVAREZ PINEDA | D4: 2198-2020 | E4: AUDITOR DE SISTEMAS Y RESOLUCION 4505 | F4: 01 de Junio 2020 | G4: 30 de Junio de 2020 | H4: 3000000 | I4: 3000000 | J4: HONORARIOS | K4: 2730 | L4: 3681 | M4: NILSA ARIZA MARQUEZ | N4: COORDINADOR PYP | O4: 2020-06-12 | P4: https://www.contratos.gov.co/consultas/detalleProceso.do?numConstancia=20-4-10842591
A5: 4 | B5: 22736159 | C5: ARACELLY HERNANDEZ GARCIA | D5: 2199-2020 | E5: AUXILIAR ADMINISTRATIVO TIC Y SISTEMA DE INFORMACION | F5: 01 de Junio 2020 | G5: 30 de Junio de 2020 | H5: 2500000 | I5: 2500000 | J5: REMUNERACION | K5: 2731 | L5: 3682 | M5: NILSA ARIZA MARQUEZ | N5: COORDINADOR PYP | O5: 2020-06-12 | P5: https://www.contratos.gov.co/consultas/detalleProceso.do?numConstancia=20-4-10842596
A6: 5 | B6: 1042416953 | C6: GABRIEL JOSE MONTIEL CERVANTES | D6: 2200-2020 | E6: INGENIERO DE REDES Y HARDWARE | F6: 01 de Junio 2020 | G6: 30 de Junio de 2020 | H6: 3000000 | I6: 3000000 | J6: HONORARIOS | K6: 2732 | L6: 3683 | M6: ZULLY ROMERO | N6: COORDINADOR TIC | O6: 2020-06-12 | P6: https://www.contratos.gov.co/consultas/detalleProceso.do?numConstancia=20-4-10842614
A7: 6 | B7: 1043121395 | C7: SHEYLA DEL CARMEN ESTRADA ARIZA | D7: 2201-2020 | E7: TECNICO DE SISTEMAS | F7: 01 de Junio 2020 | G7: 30 de Junio de 2020 | H7: 1270000 | I7: 1270000 | J7: REMUNERACION | K7: 2733 | L7: 3684 | M7: ZULLY ROMERO | N7: COORDINADORA TIC | O7: 2020-06-12 | P7: https://www.contratos.gov.co/consultas/detalleProceso.do?numConstancia=20-4-10842615
A8: 7 | B8: 8762035 | C8: CESAR AUGUSTO MERIÑO ESCORCIA | D8: 2202-2020 | E8: ORIENTADOR | F8: 01 de Junio 2020 | G8: 30 de Junio de 2020 | H8: 1270000 | I8: 1270000 | J8: REMUNERACION | K8: 2734 | L8: 3685 | M8: SANDRA SANMARTIN | N8: SUBGERENTE ADMINISTRATIVO | O8: 2020-06-12 | P8: https://www.contratos.gov.co/consultas/detalleProceso.do?numConstancia=20-4-10842619
A9: 8 | B9: 1140814033 | C9: STEFANY RINCON TORRES | D9: 2203-2020 | E9: ASISTENTE ADMINISTRATIVO- COORD EMERGENCIA COVIC 19 | F9: 01 de Junio 2020 | G9: 30 de Junio de 2020 | H9: 3600000 | I9: 3600000 | J9: REMUNERACION | K9: 2735 | L9: 3686 | M9: BETTY PERTUZ | N9: SUBGERENTE CIENTIFICO | O9: 2020-06-12 | P9: https://www.contratos.gov.co/consultas/detalleProceso.do?numConstancia=20-4-10842628
A10: 9 | B10: 1140874429 | C10: ALBERTO DE LA OSSA DE AVILA | D10: 2204-2020 | E10: PROFESIONAL PRESUPUESTO | F10: 01 de Junio 2020 | G10: 30 de Junio de 2020 | H10: 3000000 | I10: 3000000 | J10: HONORARIOS | K10: 2736 | L10: 3687 | M10: JORGE OLMOS NAVARRO | N10: DIRECTOR FINANCIERO | O10: 2020-06-12 | P10: https://www.contratos.gov.co/consultas/detalleProceso.do?numConstancia=20-4-10842639
A11: 10 | B11: 22549719 | C11: CARMEN MELINA BOLAÑO COTES | D11: 2205-2020 | E11: AUXILIAR ADMINISTRATIVO ESTADISTICA | F11: 01 de Junio 2020 | G11: 30 de Junio de 2020 | H11: 2500000 | I11: 2500000 | J11: REMUNERACION | K11: 2737 | L11: 3688 | M11: GENARO GUTIERREZ DE PIÑERES | N11: JEFE DE ESTADISTICA | O11: 2020-06-12 | P11: https://www.contratos.gov.co/consultas/detalleProceso.do?numConstancia=20-4-10842645
A12: 11 | B12: 1001798325 | C12: CINDY MILENA SARMIENTO MERIÑO | D12: 2206-2020 | E12: ESPECIALISTA TALENTO HUMANO | F12: 01 de Junio 2020 | G12: 30 de Junio de 2020 | H12: 4000000 | I12: 4000000 | J12: HONORARIOS | K12: 2738 | L12: 3689 | M12: FABIAN COLPAS OROZCO | N12: JEFE TALENTO HUMANO | O12: 2020-06-12 | P12: https://www.contratos.gov.co/consultas/detalleProceso.do?numConstancia=20-4-10842647
A13: 12 | B13: 32769708 | C13: CLAUDIA ARENAS ALVAREZ | D13: 2207-2020 | E13: APOYO GESTION CONTROL INTERNO | F13: 01 de Junio 2020 | G13: 30 de Junio de 2020 | H13: 3500000 | I13: 3500000 | J13: REMUNERACION | K13: 2739 | L13: 3690 | M13: SANDRA SANMARTIN | N13: SUBGERENTE ADMINISTRATIVO | O13: 2020-06-12 | P13: https://www.contratos.gov.co/consultas/detalleProceso.do?numConstancia=20-4-10842653
A14: 13 | B14: 1043611198 | C14: CRISTIAN JESUS RODRIGUEZ QUIROZ | D14: 2208-2020 | E14: PROFESIONAL CONTADURIA | F14: 01 de Junio 2020 | G14: 30 de Junio de 2020 | H14: 3000000 | I14: 3000000 | J14: HONORARIOS | K14: 2740 | L14: 3691 | M14: JORGE OLMOS NAVARRO | N14: DIRECTOR FINANCIERO | O14: 2020-06-12 | P14: https://www.contratos.gov.co/consultas/detalleProceso.do?numConstancia=20-4-10842657
A15: 14 | B15: 22704983 | C15: EGUIS ODILA ROLONG LAGUNA | D15: 2209-2020 | E15: ABOGADO TALENTO HUMANO | F15: 01 de Junio 2020 | G15: 30 de Junio de 2020 | H15: 4500000 | I15: 4500000 | J15: HONORARIOS | K15: 2741 | L15: 3692 | M15: FABIAN COLPAS OROZCO | N15: JEFE TALENTO HUMANO | O15: 2020-06-12 | P15: https://www.contratos.gov.co/consultas/detalleProceso.do?numConstancia=20-4-10842665
A16: 15 | B16: 32866006 | C16: ERIKA ASCENCIO MARQUEZ | D16: 2210-2020 | E16: PROFESIONAL CONTRATACION Y SISTEMAS DE INFORMACION TALENTO HUMANO | F16: 01 de Junio 2020 | G16: 30 de Junio de 2020 | H16: 4000000 | I16: 4000000 | J16: HONORARIOS | K16: 2742 | L16: 3693 | M16: FABIAN COLPAS OROZCO | N16: JEFE TALENTO HUMANO | O16: 2020-06-12 | P16: https://www.contratos.gov.co/consultas/detalleProceso.do?numConstancia=20-4-10842674
A17: 16 | B17: 8495176 | C17: JAIME ALBERTO ALVAREZ NORIEGA | D17: 2211-2020 | E17: INGENIERO AMBIENTAL | F17: 01 de Junio 2020 | G17: 30 de Junio de 2020 | H17: 3500000 | I17: 3500000 | J17: HONORARIOS | K17: 2743 | L17: 3694 | M17: SANDRA SANMARTIN | N17: SUBGERENTE ADMINISTRATIVO | O17: 2020-06-12 | P17: https://www.contratos.gov.co/consultas/detalleProceso.do?numConstancia=20-4-10842681
A18: 17 | B18: 1010137665 | C18: KAROLINE JUDITH MORENO VARELO | D18: 2212-2020 | E18: ASISTENTE ADMINISTRATIVO DE ODONTOLOGIA, PROMOCION Y PREVENCION. | F18: 01 de Junio 2020 | G18: 30 de Junio de 2020 | H18: 1500000 | I18: 1500000 | J18: REMUNERACION | K18: 2744 | L18: 3695 | M18: NILSA ARIZA MARQUEZ | N18: COORDINADOR PYP | O18: 2020-06-12 | P18: https://www.contratos.gov.co/consultas/detalleProceso.do?numConstancia=20-4-10842688
A19: 18 | B19: 72053529 | C19: LEINER DARIO MEDINA HERRERA | D19: 2213-2020 | E19: CONTROL INTERNO | F19: 01 de Junio 2020 | G19: 30 de Junio de 2020 | H19: 3000000 | I19: 3000000 | J19: HONORARIOS | K19: 2745 | L19: 3696 | M19: SANDRA SANMARTIN | N19: SUBGERENTE ADMINISTRATIVO | O19: 2020-06-12 | P19: https://www.contratos.gov.co/consultas/detalleProceso.do?numConstancia=20-4-10842694
A20: 19 | B20: 8571868 | C20: ERINSON RAFAEL GUZMAN DE LA HOZ | D20: 2214-2020 | E20: PROFESIONAL TALENTO HUMANO | F20: 01 de Junio 2020 | G20: 30 de Junio de 2020 | H20: 3000000 | I20: 3000000 | J20: HONORARIOS | K20: 2746 | L20: 3697 | M20: FABIAN COLPAS OROZCO | N20: JEFE TALENTO HUMANO | O20: 2020-06-12 | P20: https://www.contratos.gov.co/consultas/detalleProceso.do?numConstancia=20-4-10842705
A21: 20 | B21: 22732194 | C21: MARLEY VASQUEZ VARGAS | D21: 2215-2020 | E21: AUXILIAR DE FACTURACION CENTRAL | F21: 01 de Junio 2020 | G21: 30 de Junio de 2020 | H21: 1700000 | I21: 1700000 | J21: REMUNERACION | K21: 2747 | L21: 3698 | M21: SANDRA SANMARTIN | N21: SUBGERENTE ADMINISTRATIVO | O21: 2020-06-12 | P21: https://www.contratos.gov.co/consultas/detalleProceso.do?numConstancia=20-4-10842710
A22: 21 | B22: 44205287 | C22: MARTHA KATERINE MEJIA FRUTO | D22: 2216-2020 | E22: AUXILIAR ADMINISTRATIVO RECEPCION | F22: 01 de Junio 2020 | G22: 30 de Junio de 2020 | H22: 1900000 | I22: 1900000 | J22: REMUNERACION | K22: 2748 | L22: 3699 | M22: SANDRA SANMARTIN | N22: SUBGERENTE ADMINISTRATIVO | O22: 2020-06-12 | P22: https://www.contratos.gov.co/consultas/detalleProceso.do?numConstancia=20-4-10842719
A23: 22 | B23: 1043876764 | C23: MELANI ISABEL PERTUZ HERRERA | D23: 2217-2020 | E23: AUXILIAR ADMINISTRATIVO - SUBGERENCIA ADMINISTRATIVA | F23: 01 de Junio 2020 | G23: 30 de Junio de 2020 | H23: 2200000 | I23: 2200000 | J23: REMUNERACION | K23: 2749 | L23: 3700 | M23: SANDRA SANMARTIN | N23: SUBGERENTE ADMINISTRATIVO | O23: 2020-06-12 | P23: https://www.contratos.gov.co/consultas/detalleProceso.do?numConstancia=20-4-10842728
A24: 23 | B24: 72268005 | C24: MILTON SOLARTE RODRIGUEZ | D24: 2218-2020 | E24: TECNICO DE BASES DE DATOS | F24: 01 de Junio 2020 | G24: 30 de Junio de 2020 | H24: 3000000 | I24: 3000000 | J24: REMUNERACION | K24: 2750 | L24: 3701 | M24: SANDRA SANMARTIN | N24: SUBGERENTE ADMINISTRATIVO | O24: 2020-06-12 | P24: https://www.contratos.gov.co/consultas/detalleProceso.do?numConstancia=20-4-10842735
A25: 24 | B25: 55239101 | C25: NATALI ANDREA NIEBLES JURADO | D25: 2219-2020 | E25: AUDITOR DE CALIDAD (JEFE DE UNIDAD) | F25: 01 de Junio 2020 | G25: 30 de Junio de 2020 | H25: 5800000 | I25: 5800000 | J25: HONORARIOS | K25: 2751 | L25: 3702 | M25: BETTY PERTUZ | N25: SUBGERENTE CIENTIFICO | O25: 2020-06-12 | P25: https://www.contratos.gov.co/consultas/detalleProceso.do?numConstancia=20-4-10842739
A26: 25 | B26: 1010179685 | C26: NAYIVI OSPINA ARROYAVE | D26: 2220-2020 | E26: PROFESIONAL SISTEMA DE GESTION Y SEGURIDAD EN EL TRABAJO | F26: 01 de Junio 2020 | G26: 30 de Junio de 2020 | H26: 3500000 | I26: 3500000 | J26: HONORARIOS | K26: 2752 | L26: 3703 | M26: FABIAN COLPAS OROZCO | N26: JEFE TALENTO HUMANO | O26: 2020-06-12 | P26: https://www.contratos.gov.co/consultas/detalleProceso.do?numConstancia=20-4-10842743
A27: 26 | B27: 8603175 | C27: NILSON ORTEGA JIMENEZ | D27: 2221-2020 | E27: AUXILIAR ADMINISTRATIVO TALENTO HUMANO | F27: 01 de Junio 2020 | G27: 30 de Junio de 2020 | H27: 2000000 | I27: 2000000 | J27: REMUNERACION | K27: 2753 | L27: 3704 | M27: FABIAN COLPAS OROZCO | N27: SUBGERENTE ADMINISTRATIVO | O27: 2020-06-12 | P27: https://www.contratos.gov.co/consultas/detalleProceso.do?numConstancia=20-4-10842750
A28: 27 | B28: 1047340446 | C28: OSCAR MAURICIO MARENCO ROMERO | D28: 2222-2020 | E28: MENSAJERO | F28: 01 de Junio 2020 | G28: 30 de Junio de 2020 | H28: 1800000 | I28: 1800000 | J28: REMUNERACION | K28: 2754 | L28: 3705 | M28: BETTY PERTUZ | N28: SUBGERENTE CIENTIFICO | O28: 2020-06-12 | P28: https://www.contratos.gov.co/consultas/detalleProceso.do?numConstancia=20-4-10842753
A29: 28 | B29: 72293492 | C29: RODOLFO ENRIQUE NARVAEZ GUTIERREZ | D29: 2223-2020 | E29: PROFESIONAL ESTADISTICA | F29: 01 de Junio 2020 | G29: 30 de Junio de 2020 | H29: 3500000 | I29: 3500000 | J29: HONORARIOS | K29: 2755 | L29: 3706 | M29: GENARO GUTIERREZ DE PIÑERES | N29: JEFE DE ESTADISTICA | O29: 2020-06-12 | P29: https://www.contratos.gov.co/consultas/detalleProceso.do?numConstancia=20-4-10842765
A30: 29 | B30: 22446590 | C30: ROSALBA CERPA MIRANDA | D30: 2224-2020 | E30: AUXILIAR ADMINISTRATIVO - SUBGERENCIA CIENTIFICA | F30: 01 de Junio 2020 | G30: 30 de Junio de 2020 | H30: 1900000 | I30: 1900000 | J30: REMUNERACION | K30: 2756 | L30: 3707 | M30: BETTY PERTUZ | N30: SUBGERENTE CIENTIFICO | O30: 2020-06-12 | P30: https://www.contratos.gov.co/consultas/detalleProceso.do?numConstancia=20-4-10842772
A31: 30 | B31: 1140818354 | C31: SAEN DAVID TAJAN NIEBLES | D31: 2225-2020 | E31: AUXILIAR ADMINISTRATIVO DE SISTEMAS DE INFORMACION EN PROMOCION Y PREVENCION | F31: 01 de Junio 2020 | G31: 30 de Junio de 2020 | H31: 2000000 | I31: 2000000 | J31: REMUNERACION | K31: 2757 | L31: 3708 | M31: NILSA ARIZA MARQUEZ | N31: COORDINADOR PYP | O31: 2020-06-12 | P31: https://www.contratos.gov.co/consultas/detalleProceso.do?numConstancia=20-4-10842778
A32: 31 | B32: 57105527 | C32: ZOILA PATRICIA PABON HERNANDEZ | D32: 2226-2020 | E32: ASISTENTE COORDINACIÓN MÉDICA | F32: 01 de Junio 2020 | G32: 30 de Junio de 2020 | H32: 3500000 | I32: 3500000 | J32: REMUNERACION | K32: 2758 | L32: 3709 | M32: BETTY PERTUZ | N32: SUBGERENTE CIENTIFICO | O32: 2020-06-12 | P32: https://www.contratos.gov.co/consultas/detalleProceso.do?numConstancia=20-4-10842781
A33: 32 | B33: 32825462 | C33: ANAIS DE JESUS RODRIGUEZ DE LAS AGUAS | D33: 2227-2020 | E33: PERSONAL LIMPIEZA Y ASEO | F33: 01 de Junio 2020 | G33: 30 de Junio de 2020 | H33: 1215000 | I33: 1215000 | J33: REMUNERACION | K33: 2759 | L33: 3710 | M33: JAIME ALVAREZ NORIEGA | N33: INGENIERO AMBIENTAL | O33: 2020-06-12 | P33: https://www.contratos.gov.co/consultas/detalleProceso.do?numConstancia=20-4-10842790
A34: 33 | B34: 1041898122 | C34: MELIZA MORALES PALLARES | D34: 2228-2020 | E34: AUXILIAR ADMINISTRATIVO | F34: 01 de Junio 2020 | G34: 30 de Junio de 2020 | H34: 2000000 | I34: 2000000 | J34: REMUNERACION | K34: 2760 | L34: 3711 | M34: SANDRA SANMARTIN | N34: SUBGERENTE ADMINISTRATIVO | O34: 2020-06-12 | P34: https://www.contratos.gov.co/consultas/detalleProceso.do?numConstancia=20-4-10842794
A35: 34 | B35: 1042439853 | C35: KERVY DIYAN JINETTE BARRIOS | D35: 2229-2020 | E35: AUXILIAR ADMINISTRATIVO RESOLUCIÓN 2463 | F35: 01 de Junio 2020 | G35: 30 de Junio de 2020 | H35: 1900000 | I35: 1900000 | J35: REMUNERACION | K35: 2761 | L35: 3712 | M35: BETTY PERTUZ | N35: SUBGERENTE CIENTIFICO | O35: 2020-06-12 | P35: https://www.contratos.gov.co/consultas/detalleProceso.do?numConstancia=20-4-10842801
A36: 35 | B36: 1045732710 | C36: VICTOR JOSE AGUILAR CRUZADO | D36: 2230-2020 | E36: AUXILIAR ADMINISTRATIVO- CONTRATACION BIENES Y SERVICIOS | F36: 01 de Junio 2020 | G36: 30 de Junio de 2020 | H36: 3000000 | I36: 3000000 | J36: REMUNERACION | K36: 2762 | L36: 3713 | M36: ORNELLA FIORENTINO | N36: JEFE JURIDICA | O36: 2020-06-12 | P36: https://www.contratos.gov.co/consultas/detalleProceso.do?numConstancia=20-4-10842809
A37: 36 | B37: 8776312 | C37: JORGE RIVERA MEZA | D37: 2231-2020 | E37: AUXILIAR RECURSOS FISICOS | F37: 01 de Junio 2020 | G37: 30 de Junio de 2020 | H37: 1900000 | I37: 1900000 | J37: REMUNERACION | K37: 2763 | L37: 3714 | M37: SANDRA SANMARTIN | N37: SUBGERENTE ADMINISTRATIVO | O37: 2020-06-12 | P37: https://www.contratos.gov.co/consultas/detalleProceso.do?numConstancia=20-4-10842814
A38: 37 | B38: 1042971531 | C38: JULIETH PAOLA FIGUEROA ZAMBRANO | D38: 2232-2020 | E38: AUXILIAR ADMINISTRATIVO CONTABLE | F38: 01 de Junio 2020 | G38: 30 de Junio de 2020 | H38: 2500000 | I38: 2500000 | J38: REMUNERACION | K38: 2764 | L38: 3715 | M38: JORGE OLMOS NAVARRO | N38: DIRECTOR FINANCIERO | O38: 2020-06-12 | P38: https://www.contratos.gov.co/consultas/detalleProceso.do?numConstancia=20-4-10842819
A39: 38 | B39: 1042447104 | C39: IVOR ANDRES SANJUAN PEREZ | D39: 2233-2020 | E39: AUXILIAR RECURSOS FISICOS | F39: 01 de Junio 2020 | G39: 30 de Junio de 2020 | H39: 1900000 | I39: 1900000 | J39: REMUNERACION | K39: 2765 | L39: 3716 | M39: SANDRA SANMARTIN | N39: SUBGERENTE ADMINISTRATIVO | O39: 2020-06-12 | P39: https://www.contratos.gov.co/consultas/detalleProceso.do?numConstancia=20-4-10842823
A40: 39 | B40: 32607428 | C40: TEMILDA MARIA PERTUZ PEREZ | D40: 2234-2020 | E40: AUDITOR DE PAMEC | F40: 01 de Junio 2020 | G40: 30 de Junio de 2020 | H40: 3180000 | I40: 3180000 | J40: HONORARIOS | K40: 2766 | L40: 3717 | M40: BETTY PERTUZ | N40: SUBGERENTE CIENTIFICO | O40: 2020-06-12 | P40: https://www.contratos.gov.co/consultas/detalleProceso.do?numConstancia=20-4-10842829
A41: 40 | B41: 1045721126 | C41: MARYURIS JOANNA GALVAN NAVARRO | D41: 2235-2020 | E41: LIDER LABORATORIO | F41: 01 de Junio 2020 | G41: 30 de Junio de 2020 | H41: 5000000 | I41: 5000000 | J41: HONORARIOS | K41: 2767 | L41: 3718 | M41: BETTY PERTUZ | N41: SUBGERENTE CIENTIFICO | O41: 2020-06-12 | P41: https://www.contratos.gov.co/consultas/detalleProceso.do?numConstancia=20-4-10842837
A42: 41 | B42: 1140847982 | C42: LEIDY DANIELA WILSON PEZZOTI | D42: 2236-2020 | E42: AUXILIAR ADMINISTRATIVO VENTANILLA UNICA | F42: 01 de Junio 2020 | G42: 30 de Junio de 2020 | H42: 1900000 | I42: 1900000 | J42: REMUNERACION | K42: 2768 | L42: 3719 | M42: SANDRA SANMARTIN | N42: SUBGERENTE ADMINISTRATIVO | O42: 2020-06-12 | P42: https://www.contratos.gov.co/consultas/detalleProceso.do?numConstancia=20-4-10842840
A43: 42 | B43: 22804794 | C43: KATHERINE GUERRERO SEPULVEDA | D43: 2237-2020 | E43: ABOGADO EXTERNO | F43: 01 de Junio 2020 | G43: 30 de Junio de 2020 | H43: 5800000 | I43: 5800000 | J43: HONORARIOS | K43: 2769 | L43: 3720 | M43: ORNELLA FIORENTINO | N43: JEFE JURIDICA | O43: 2020-06-12 | P43: https://www.contratos.gov.co/consultas/detalleProceso.do?numConstancia=20-4-10842849
A44: 43 | B44: 22504159 | C44: FLOR MILENA GOICOCHEA OROZCO | D44: 2238-2020 | E44: AUXILIAR FACTURACION CENTRAL | F44: 01 de Junio 2020 | G44: 30 de Junio de 2020 | H44: 2000000 | I44: 2000000 | J44: REMUNERACION | K44: 2770 | L44: 3721 | M44: SANDRA SANMARTIN | N44: SUBGERENTE ADMINISTRATIVO | O44: 2020-06-12 | P44: https://www.contratos.gov.co/consultas/detalleProceso.do?numConstancia=20-4-10842854
A45: 44 | B45: 72250386 | C45: RONALD EMIL PADILLA ACUÑA | D45: 2239-2020 | E45: ABOGADO | F45: 01 de Junio 2020 | G45: 30 de Junio de 2020 | H45: 5000000 | I45: 5000000 | J45: HONORARIOS | K45: 2771 | L45: 3722 | M45: ORNELLA FIORENTINO | N45: JEFE JURIDICA | O45: 2020-06-12 | P45: https://www.contratos.gov.co/consultas/detalleProceso.do?numConstancia=20-4-10842860
A46: 45 | B46: 32848040 | C46: LEDIS MARIA MOLINA OQUENDO | D46: 2240-2020 | E46: ABOGADO CONTRATACION | F46: 01 de Junio 2020 | G46: 30 de Junio de 2020 | H46: 5000000 | I46: 5000000 | J46: HONORARIOS | K46: 2772 | L46: 3723 | M46: ORNELLA FIORENTINO | N46: JEFE JURIDICA | O46: 2020-06-12 | P46: https://www.contratos.gov.co/consultas/detalleProceso.do?numConstancia=20-4-10842864
A47: 46 | B47: 1045166274 | C47: ALBA MARINA RODRIGUEZ YANCE | D47: 2241-2020 | E47: ASESORA SALUD PUBLICA EN LA SUBGERENCIA CIENTIFICA | F47: 01 de Junio 2020 | G47: 30 de Junio de 2020 | H47: 5800000 | I47: 5800000 | J47: HONORARIOS | K47: 2773 | L47: 3724 | M47: JUAN ESTEBAN SANCHEZ PAEZ | N47: GERENTE | O47: 2020-06-12 | P47: https://www.contratos.gov.co/consultas/detalleProceso.do?numConstancia=20-4-10842869
A48: 47 | B48: 44190767 | C48: LUCIBELL ALVAREZ NAVARRO | D48: 2242-2020 | E48: ASESORA SUBGERENCIA CIENTIFICA | F48: 01 de Junio 2020 | G48: 30 de Junio de 2020 | H48: 5800000 | I48: 5800000 | J48: HONORARIOS | K48: 2774 | L48: 3725 | M48: JUAN ESTEBAN SANCHEZ PAEZ | N48: GERENTE | O48: 2020-06-12 | P48: https://www.contratos.gov.co/consultas/detalleProceso.do?numConstancia=20-4-10842878
A49: 48 | B49: 5055447 | C49: CARLOS ALBERTO CARBONELL ALVAREZ | D49: 2243-2020 | E49: AUDITORIA MEDICA | F49: 01 de Junio 2020 | G49: 30 de Junio de 2020 | H49: 4500000 | I49: 4500000 | J49: HONORARIOS | K49: 2775 | L49: 3726 | M49: BETTY PERTUZ | N49: SUBGERENTE CIENTIFICO | O49: 2020-06-12 | P49: https://www.contratos.gov.co/consultas/detalleProceso.do?numConstancia=20-4-10842884
A50: 49 | B50: 1045698343 | C50: JOSE FRANCISCO INFANZON CASTRO | D50: 2244-2020 | E50: INGENERIO MECANICO- RECURSOS FISICOS | F50: 01 de Junio 2020 | G50: 30 de Junio de 2020 | H50: 5800000 | I50: 5800000 | J50: HONORARIOS | K50: 2776 | L50: 3727 | M50: SANDRA SANMARTIN | N50: SUBGERENTE ADMINISTRATIVO | O50: 2020-06-12 | P50: https://www.contratos.gov.co/consultas/detalleProceso.do?numConstancia=20-4-10842891
A51: 50 | B51: 40981378 | C51: LIDYS CASTILLO TOVAR | D51: 2245-2020 | E51: PROFESIONAL OFICINA PAGADURIA | F51: 01 de Junio 2020 | G51: 30 de Junio de 2020 | H51: 4000000 | I51: 4000000 | J51: HONORARIOS | K51: 2777 | L51: 3728 | M51: LUIS DE MOYA | N51: TESORERO | O51: 2020-06-12 | P51: https://www.contratos.gov.co/consultas/detalleProceso.do?numConstancia=20-4-10842894
A52: 51 | B52: 32651445 | C52: MARTIZA SARMIENTO SANTOS | D52: 2246-2020 | E52: ASESOR DE PLANEACION ESTRATÉGICA Y SISTEMAS DE GESTIÓN CALIDAD /AMBIENTE/SST | F52: 01 de Junio 2020 | G52: 30 de Junio de 2020 | H52: 5800000 | I52: 5800000 | J52: HONORARIOS | K52: 2778 | L52: 3729 | M52: JUAN ESTEBAN SANCHEZ PAEZ | N52: GERENTE | O52: 2020-06-12 | P52: https://www.contratos.gov.co/consultas/detalleProceso.do?numConstancia=20-4-10842898
A53: 52 | B53: 32863895 | C53: LUZ ELENA MARRIAGA MONTERO | D53: 2247-2020 | E53: PROFESIONAL PLANEACION | F53: 01 de Junio 2020 | G53: 30 de Junio de 2020 | H53: 4000000 | I53: 4000000 | J53: HONORARIOS | K53: 2779 | L53: 3730 | M53: BETTY PERTUZ | N53: SUBGERENTE CIENTIFICO | O53: 2020-06-12 | P53: https://www.contratos.gov.co/consultas/detalleProceso.do?numConstancia=20-4-10842901
A54: 53 | B54: 72314953 | C54: LEONEL DANIEL SILVA TAPIAS | D54: 2248-2020 | E54: REVISOR FISCAL | F54: 01 de Junio 2020 | G54: 30 de Junio de 2020 | H54: 8255982 | I54: 8255982 | J54: HONORARIOS | K54: 2780 | L54: 3731 | M54: JUAN ESTEBAN SANCHEZ PAEZ | N54: GERENTE | O54: 2020-06-12 | P54: https://www.contratos.gov.co/consultas/detalleProceso.do?numConstancia=20-4-10842907
A55: 54 | B55: 73188364 | C55: JORGE MAURICIO MONTOYA OCHOA | D55: 2249-2020 | E55: AUXILIAR RECURSOS FISICOS | F55: 01 de Junio 2020 | G55: 30 de Junio de 2020 | H55: 1900000 | I55: 1900000 | J55: REMUNERACION | K55: 2781 | L55: 3732 | M55: SANDRA SANMARTIN | N55: SUBGERENTE ADMINISTRATIVO | O55: 2020-06-12 | P55: https://www.contratos.gov.co/consultas/detalleProceso.do?numConstancia=20-4-10842911
A56: 55 | B56: 1042997169 | C56: CINDY PAOLA CERA MENDOZA | D56: 2250-2020 | E56: PROFESIONAL PRESUPUESTO | F56: 01 de Junio 2020 | G56: 30 de Junio de 2020 | H56: 3000000 | I56: 3000000 | J56: HONORARIOS | K56: 2782 | L56: 3733 | M56: JORGE OLMOS NAVARRO | N56: DIRECTOR FINANCIERO | O56: 2020-06-12 | P56: https://www.contratos.gov.co/consultas/detalleProceso.do?numConstancia=20-4-10842916
A57: 56 | B57: 52618443 | C57: NATALIA ALONSO CARVAJAL | D57: 2251-2020 | E57: ASESOR GERENCIA | F57: 01 de Junio 2020 | G57: 30 de Junio de 2020 | H57: 5800000 | I57: 5800000 | J57: HONORARIOS | K57: 2783 | L57: 3734 | M57: JUAN ESTEBAN SANCHEZ PAEZ | N57: GERENTE | O57: 2020-06-12 | P57: https://www.contratos.gov.co/consultas/detalleProceso.do?numConstancia=20-4-10842919
A58: 57 | B58: 45757809 | C58: MILADIS MARINA MARTINEZ MEDINA | D58: 2252-2020 | E58: LIDER SIAU | F58: 01 de Junio 2020 | G58: 30 de Junio de 2020 | H58: 3000000 | I58: 3000000 | J58: HONORARIOS | K58: 2784 | L58: 3735 | M58: BETTY PERTUZ | N58: SUBGERENTE CIENTIFICO | O58: 2020-06-12 | P58: https://www.contratos.gov.co/consultas/detalleProceso.do?numConstancia=20-4-10842928
A59: 58 | B59: 1140871897 | C59: JESICA FERNANDA DE CASTRO MANTILLA | D59: 2253-2020 | E59: INGENIERA QUIMICA | F59: 01 de Junio 2020 | G59: 30 de Junio de 2020 | H59: 5800000 | I59: 5800000 | J59: HONORARIOS | K59: 2785 | L59: 3736 | M59: BETTY PERTUZ | N59: SUBGERENTE CIENTIFICO | O59: 2020-06-12 | P59: https://www.contratos.gov.co/consultas/detalleProceso.do?numConstancia=20-4-10842932
A60: 59 | B60: 1042421404 | C60: MARIAM DEL CARMEN CANTILLO MONTERO | D60: 2254-2020 | E60: AUDITORA ODONTOLOGIA | F60: 01 de Junio 2020 | G60: 30 de Junio de 2020 | H60: 4000000 | I60: 4000000 | J60: HONORARIOS | K60: 2786 | L60: 3737 | M60: BETTY PERTUZ | N60: SUBGERENTE CIENTIFICO | O60: 2020-06-12 | P60: https://www.contratos.gov.co/consultas/detalleProceso.do?numConstancia=20-4-10842938
A61: 60 | B61: 32852247 | C61: NORELLYS PAOLA MACHACON PRIETO | D61: 2255-2020 | E61: APOYO SISTEMA DE GESTION | F61: 01 de Junio 2020 | G61: 30 de Junio de 2020 | H61: 4000000 | I61: 4000000 | J61: REMUNERACION | K61: 2787 | L61: 3738 | M61: BETTY PERTUZ | N61: SUBGERENTE CIENTIFICO | O61: 2020-06-12 | P61: https://www.contratos.gov.co/consultas/detalleProceso.do?numConstancia=20-4-10842945
A62: 61 | B62: 32862644 | C62: NURYS GARCIA DELGADO | D62: 2256-2020 | E62: AGENTE CALL CENTER | F62: 01 de Junio 2020 | G62: 30 de Junio de 2020 | H62: 1378000 | I62: 1378000 | J62: REMUNERACION | K62: 2788 | L62: 3739 | M62: WILFRAN JIMENEZ DE LA PEÑA | N62: COORD CENTRO DE SALUD | O62: 2020-06-12 | P62: https://www.contratos.gov.co/consultas/detalleProceso.do?numConstancia=20-4-10842951
A63: 62 | B63: 8745568 | C63: LUIS ENRIQUE PEREA VASQUEZ | D63: 2257-2020 | E63: AUDITORIA MEDICA | F63: 01 de Junio 2020 | G63: 30 de Junio de 2020 | H63: 4500000 | I63: 4500000 | J63: HONORARIOS | K63: 2789 | L63: 3740 | M63: BETTY PERTUZ | N63: SUBGERENTE CIENTIFICO | O63: 2020-06-12 | P63: https://www.contratos.gov.co/consultas/detalleProceso.do?numConstancia=20-4-10842952
A64: 63 | B64: 72228319 | C64: BLADIMIR ALEXANDER SARMIENTO QUIÑONES | D64: 2258-2020 | E64: TECNICO EN SISTEMAS Y ELECTRONICO | F64: 01 de Junio 2020 | G64: 30 de Junio de 2020 | H64: 1900000 | I64: 1900000 | J64: REMUNERACION | K64: 2790 | L64: 3741 | M64: ZULLY ROMERO | N64: COORDINADORA TIC | O64: 2020-06-12 | P64: https://www.contratos.gov.co/consultas/detalleProceso.do?numConstancia=20-4-10842958
A65: 64 | B65: 1042424161 | C65: YENSY ANGELINA ESCALANTE FERRER | D65: 2259-2020 | E65: AUXILIAR ADMINISTRATIVO CONTABLE | F65: 01 de Junio 2020 | G65: 30 de Junio de 2020 | H65: 2000000 | I65: 2000000 | J65: REMUNERACION | K65: 2791 | L65: 3742 | M65: JORGE OLMOS NAVARRO | N65: DIRECTOR FINANCIERO | O65: 2020-06-12 | P65: https://www.contratos.gov.co/consultas/detalleProceso.do?numConstancia=20-4-10842960
A66: 65 | B66: 72432594 | C66: RUBEN UCROS | D66: 2260-2020 | E66: AUXILIAR FACTURACION | F66: 01 de Junio 2020 | G66: 30 de Junio de 2020 | H66: 2100000 | I66: =+H66*1 -> 2100000 | J66: REMUNERACION | K66: 2792 | L66: 3743 | M66: SANDRA SANMARTIN | N66: SUBGERENTE ADMINISTRATIVO | O66: 2020-06-12 | P66: https://www.contratos.gov.co/consultas/detalleProceso.do?numConstancia=20-4-10842963
A67: 66 | B67: 22642515 | C67: NOHEMI ESPERANZA CASTRO LOPEZ | D67: 2261-2020 | E67: AUDITORA SERVICIO DE SALUD | F67: 01 de Junio 2020 | G67: 30 de Junio de 2020 | H67: 4000000 | I67: 4000000 | J67: HONORARIOS | K67: 2793 | L67: 3744 | M67: BETTY PERTUZ | N67: SUBGERENTE CIENTIFICO | O67: 2020-06-12 | P67: https://www.contratos.gov.co/consultas/detalleProceso.do?numConstancia=20-4-10842966
A68: =+A67+1 -> 67 | B68: 1045670289 | C68: HOLMAN ALEXANDER AVILA FERNANDEZ | D68: 2262-2020 | E68: AUXILIAR FACTURACION CENTRAL | F68: 01 de Junio 2020 | G68: 30 de Junio de 2020 | H68: 3000000 | I68: 3000000 | J68: REMUNERACION | K68: 2794 | L68: 3745 | M68: SANDRA SANMARTIN | N68: SUBGERENTE ADMINISTRATIVO | O68: 2020-06-12 | P68: https://www.contratos.gov.co/consultas/detalleProceso.do?numConstancia=20-4-10842970
A69: 68 | B69: 8639410 | C69: CESAR OCTAVIO VARGAS DURAN | D69: 2263-2020 | E69: TECNICO AMBIENTAL | F69: 01 de Junio 2020 | G69: 30 de Junio de 2020 | H69: 2300000 | I69: 2300000 | J69: REMUNERACION | K69: 2795 | L69: 3746 | M69: JAIME ALVAREZ NORIEGA | N69: INGENIERO AMBIENTAL | O69: 2020-06-12 | P69: https://www.contratos.gov.co/consultas/detalleProceso.do?numConstancia=20-4-10842971
A70: 69 | B70: 1047334999 | C70: MARTHA INES SALCEDO HUN | D70: 2264-2020 | E70: ASESORA GESTION AMBIENTAL | F70: 01 de Junio 2020 | G70: 30 de Junio de 2020 | H70: 5800000 | I70: 5800000 | J70: HONORARIOS | K70: 2796 | L70: 3747 | M70: JUAN ESTEBAN SANCHEZ PAEZ | N70: GERENTE | O70: 2020-06-12 | P70: https://www.contratos.gov.co/consultas/detalleProceso.do?numConstancia=20-4-10842976
A71: 70 | B71: 1124026102 | C71: LUISA FERNANDA PANA CARABALLO | D71: 2265-2020 | E71: LIDER PROCESOS FACTURACION CENTRAL | F71: 01 de Junio 2020 | G71: 30 de Junio de 2020 | H71: 2500000 | I71: 2500000 | J71: HONORARIOS | K71: 2797 | L71: 3748 | M71: SANDRA SANMARTIN | N71: SUBGERENTE ADMINISTRATIVO | O71: 2020-06-12 | P71: https://www.contratos.gov.co/consultas/detalleProceso.do?numConstancia=20-4-10842978
A72: 71 | B72: 1045676054 | C72: JHONNY ALVAREZ TORRENCILLA | D72: 2266-2020 | E72: AUXILIAR FACTURACION CENTRAL | F72: 01 de Junio 2020 | G72: 30 de Junio de 2020 | H72: 4000000 | I72: 4000000 | J72: REMUNERACION | K72: 2798 | L72: 3749 | M72: SANDRA SANMARTIN | N72: SUBGERENTE ADMINISTRATIVO | O72: 2020-06-12 | P72: https://www.contratos.gov.co/consultas/detalleProceso.do?numConstancia=20-4-10842984
A73: 72 | B73: 84453299 | C73: LUIS FERNANDO CUELLAR CANTILLO | D73: 2267-2020 | E73: ASESOR FINANCIERO | F73: 01 de Junio 2020 | G73: 30 de Junio de 2020 | H73: 4000000 | I73: 4000000 | J73: HONORARIOS | K73: 2799 | L73: 3750 | M73: SANDRA SANMARTIN | N73: SUBGERENTE ADMINISTRATIVO | O73: 2020-06-12 | P73: https://www.contratos.gov.co/consultas/detalleProceso.do?numConstancia=20-4-10842989
A74: 73 | B74: 44157462 | C74: DAYAN MARTINEZ PACHECO | D74: 2268-2020 | E74: ABOGADO | F74: 01 de Junio 2020 | G74: 30 de Junio de 2020 | H74: =5000000/30*6 -> 1000000 | I74: 1000000 | J74: HONORARIOS | K74: 2800 | L74: 3751 | M74: ORNELLA FIORENTINO | N74: JEFE JURIDICA | O74: 2020-06-12 | P74: https://www.contratos.gov.co/consultas/detalleProceso.do?numConstancia=20-4-10842996
A75: 74 | B75: 44156926 | C75: GLADYS CECILIA ESCALANTE FERRER | D75: 2269-2020 | E75: AUDITORA | F75: 01 de Junio 2020 | G75: 30 de Junio de 2020 | H75: 4000000 | I75: 4000000 | J75: HONORARIOS | K75: 2801 | L75: 3752 | M75: BETTY PERTUZ | N75: SUBGERENTE CIENTIFICO | O75: 2020-06-12 | P75: https://www.contratos.gov.co/consultas/detalleProceso.do?numConstancia=20-4-10842998
A76: 75 | B76: 22741244 | C76: ARLETH PATRICIA CARRILLO GARVIN | D76: 2270-2020 | E76: ENFERMERA JEFE DE PROMOCIÓN Y MANTENIMIENTO DE LA SALUD | F76: 01 de Junio 2020 | G76: 30 de Junio de 2020 | H76: 2300000 | I76: 2300000 | J76: HONORARIOS | K76: 2802 | L76: 3753 | M76: NILSA ARIZA MARQUEZ | N76: COORDINADOR PYP | O76: 2020-06-12 | P76: https://www.contratos.gov.co/consultas/detalleProceso.do?numConstancia=20-4-10843001
A77: 76 | B77: 1140847587 | C77: MAGANY JUDITH JARAMILLO MOLINA | D77: 2271-2020 | E77: INGENIERO DE SISTEMAS | F77: 01 de Junio 2020 | G77: 30 de Junio de 2020 | H77: 3000000 | I77: 3000000 | J77: HONORARIOS | K77: 2803 | L77: 3754 | M77: ZULLY ROMERO | N77: COORDINADORA TIC | O77: 2020-06-12 | P77: https://www.contratos.gov.co/consultas/detalleProceso.do?numConstancia=20-4-10843003
A78: 77 | B78: 1042451204 | C78: LEIDIS ESTHER MIRANDA MARCHENA | D78: 2272-2020 | E78: PROFESIONAL CONTADURIA | F78: 01 de Junio 2020 | G78: 30 de Junio de 2020 | H78: 3000000 | I78: 3000000 | J78: HONORARIOS | K78: 2804 | L78: 3755 | M78: JORGE OLMOS NAVARRO | N78: DIRECTOR FINANCIERO | O78: 2020-06-12 | P78: https://www.contratos.gov.co/consultas/detalleProceso.do?numConstancia=20-4-10843007
A79: 78 | B79: 55225494 | C79: ULDYS ESTHER PONZON PORTO | D79: 2273-2020 | E79: LIDER SERVICIOS MEDICOS | F79: 01 de Junio 2020 | G79: 30 de Junio de 2020 | H79: 3700000 | I79: 3700000 | J79: HONORARIOS | K79: 2805 | L79: 3756 | M79: BETTY PERTUZ | N79: SUBGERENTE CIENTIFICO | O79: 2020-06-12 | P79: https://www.contratos.gov.co/consultas/detalleProceso.do?numConstancia=20-4-10843009
A80: 79 | B80: 72045976 | C80: HUMBERTO ZACARIAS CADAVID ALDANA | D80: 2274-2020 | E80: ASESOR GERENCIA | F80: 01 de Junio 2020 | G80: 30 de Junio de 2020 | H80: 4500000 | I80: 4500000 | J80: HONORARIOS | K80: 2806 | L80: 3757 | M80: JUAN ESTEBAN SANCHEZ PAEZ | N80: GERENTE | O80: 2020-06-12 | P80: https://www.contratos.gov.co/consultas/detalleProceso.do?numConstancia=20-4-10843016
A81: 80 | B81: 1043023724 | C81: JAILINE SOLANO MERCADO | D81: 2275-2020 | E81: ASESOR FINANCIERO | F81: 01 de Junio 2020 | G81: 30 de Junio de 2020 | H81: 5800000 | I81: 5800000 | J81: HONORARIOS | K81: 2807 | L81: 3758 | M81: JUAN ESTEBAN SANCHEZ PAEZ | N81: GERENTE | O81: 2020-06-12 | P81: https://www.contratos.gov.co/consultas/detalleProceso.do?numConstancia=20-4-10843020
A82: 81 | B82: 1143465478 | C82: YULEIMY LISETH YANCE CAMARGO | D82: 2276-2020 | E82: ABOGADO | F82: 01 de Junio 2020 | G82: 30 de Junio de 2020 | H82: 2200000 | I82: 2200000 | J82: HONORARIOS | K82: 2808 | L82: 3759 | M82: ORNELLA FIORENTINO | N82: JEFE JURIDICA | O82: 2020-06-12 | P82: https://www.contratos.gov.co/consultas/detalleProceso.do?numConstancia=20-4-10843024
A83: 82 | B83: 1041899345 | C83: YESMITH ADRIANA VIZCAINO CARRILLO | D83: 2277-2020 | E83: ASISTENTE ADMINISTRATIVO | F83: 01 de Junio 2020 | G83: 30 de Junio de 2020 | H83: 1900000 | I83: 1900000 | J83: REMUNERACION | K83: 2809 | L83: 3760 | M83: FABIAN COLPAS OROZCO | N83: JEFE TALENTO HUMANO | O83: 2020-06-12 | P83: https://www.contratos.gov.co/consultas/detalleProceso.do?numConstancia=20-4-10843030
A84: 83 | B84: 1062815025 | C84: THALIA ANGELICA ARMENTA AMAYA | D84: 2278-2020 | E84: PSICOLOGA TALENTO HUMANO | F84: 01 de Junio 2020 | G84: 30 de Junio de 2020 | H84: 4000000 | I84: 4000000 | J84: HONORARIOS | K84: 2810 | L84: 3761 | M84: FABIAN COLPAS OROZCO | N84: JEFE TALENTO HUMANO | O84: 2020-06-12 | P84: https://www.contratos.gov.co/consultas/detalleProceso.do?numConstancia=20-4-10843035
A85: 84 | B85: 57105067 | C85: GINA LETICIA MARCOS FERNANDEZ | D85: 2279-2020 | E85: ESPECIALISTA ESTADISTICA | F85: 01 de Junio 2020 | G85: 30 de Junio de 2020 | H85: 5000000 | I85: 5000000 | J85: HONORARIOS | K85: 2811 | L85: 3762 | M85: GENARO GUTIERREZ DE PIÑERES | N85: JEFE DE ESTADISTICA | O85: 2020-06-12 | P85: https://www.contratos.gov.co/consultas/detalleProceso.do?numConstancia=20-4-10843039
A86: 85 | B86: 85468633 | C86: GREGORIO RUIZ PACHECO | D86: 2280-2020 | E86: ABOGADO EXTERNO TALENTO HUMANO | F86: 01 de Junio 2020 | G86: 30 de Junio de 2020 | H86: 4000000 | I86: 4000000 | J86: HONORARIOS | K86: 2812 | L86: 3763 | M86: FABIAN COLPAS OROZCO | N86: JEFE TALENTO HUMANO | O86: 2020-06-12 | P86: https://www.contratos.gov.co/consultas/detalleProceso.do?numConstancia=20-4-10843042
A87: 86 | B87: 32829531 | C87: MILENA DONADO OCHOA | D87: 2281-2020 | E87: APOYO COORDINACION ODONTOLOGIA | F87: 01 de Junio 2020 | G87: 30 de Junio de 2020 | H87: 4000000 | I87: 4000000 | J87: REMUNERACION | K87: 2813 | L87: 3764 | M87: BETTY PERTUZ | N87: SUBGERENTE CIENTIFICO | O87: 2020-06-12 | P87: https://www.contratos.gov.co/consultas/detalleProceso.do?numConstancia=20-4-10843045
A88: 87 | B88: 57270649 | C88: MARTHA MATILDE JIMENEZ ROMERO | D88: 2282-2020 | E88: AUDITORA | F88: 01 de Junio 2020 | G88: 30 de Junio de 2020 | H88: 3000000 | I88: 3000000 | J88: HONORARIOS | K88: 2814 | L88: 3765 | M88: BETTY PERTUZ | N88: SUBGERENTE CIENTIFICO | O88: 2020-06-12 | P88: https://www.contratos.gov.co/consultas/detalleProceso.do?numConstancia=20-4-10843048
A89: 88 | B89: 72095954 | C89: JUAN CARLOS BARROS CARO | D89: 2283-2020 | E89: ASESOR GERENCIA | F89: 01 de Junio 2020 | G89: 30 de Junio de 2020 | H89: 4500000 | I89: 4500000 | J89: HONORARIOS | K89: 2815 | L89: 3766 | M89: JUAN ESTEBAN SANCHEZ PAEZ | N89: GERENTE | O89: 2020-06-12 | P89: https://www.contratos.gov.co/consultas/detalleProceso.do?numConstancia=20-4-10843050
A90: 89 | B90: 19619279 | C90: GUSTAVO SEGUNDO FLORIDO HATUN | D90: 2284-2020 | E90: AUDITOR | F90: 01 de Junio 2020 | G90: 30 de Junio de 2020 | H90: 5000000 | I90: 5000000 | J90: HONORARIOS | K90: 2816 | L90: 3767 | M90: BETTY PERTUZ | N90: SUBGERENTE CIENTIFICO | O90: 2020-06-12 | P90: https://www.contratos.gov.co/consultas/detalleProceso.do?numConstancia=20-4-10843053
A91: 90 | B91: 32767778 | C91: BEATRIZ ELENA GUTIERREZ AHUMADA | D91: 2285-2020 | E91: DIGITADOR PAI WEB | F91: 01 de Junio 2020 | G91: 30 de Junio de 2020 | H91: 1458000 | I91: 1458000 | J91: REMUNERACION | K91: 2817 | L91: 3768 | M91: YURANIS BONIFAS | N91: COORDINADOR PAIWEB | O91: 2020-06-12 | P91: https://www.contratos.gov.co/consultas/detalleProceso.do?numConstancia=20-4-10843060
A92: 91 | B92: 1143439595 | C92: DAYANA PAOLA OTALORA AMAYA | D92: 2286-2020 | E92: DIGITADOR PAI WEB | F92: 01 de Junio 2020 | G92: 30 de Junio de 2020 | H92: 1458000 | I92: 1458000 | J92: REMUNERACION | K92: 2818 | L92: 3769 | M92: YURANIS BONIFAS | N92: COORDINADOR PAIWEB | O92: 2020-06-12 | P92: https://www.contratos.gov.co/consultas/detalleProceso.do?numConstancia=20-4-10843062
A93: 92 | B93: 72170268 | C93: FABIAN FERNANDO MERCADO | D93: 2287-2020 | E93: DIGITADOR PAI WEB | F93: 01 de Junio 2020 | G93: 30 de Junio de 2020 | H93: 1458000 | I93: 1458000 | J93: REMUNERACION | K93: 2819 | L93: 3770 | M93: YURANIS BONIFAS | N93: COORDINADOR PAIWEB | O93: 2020-06-12 | P93: https://www.contratos.gov.co/consultas/detalleProceso.do?numConstancia=20-4-10843068
A94: 93 | B94: 1010123461 | C94: IVAN RAMIRO MORENO MENDOZA | D94: 2288-2020 | E94: DIGITADOR PAI WEB | F94: 01 de Junio 2020 | G94: 30 de Junio de 2020 | H94: 1458000 | I94: 1458000 | J94: REMUNERACION | K94: 2820 | L94: 3771 | M94: YURANIS BONIFAS | N94: COORDINADOR PAIWEB | O94: 2020-06-12 | P94: https://www.contratos.gov.co/consultas/detalleProceso.do?numConstancia=20-4-10843076
A95: 94 | B95: 73140179 | C95: JULIO CESAR LOPEZ ROMERO | D95: 2289-2020 | E95: DIGITADOR PAI WEB | F95: 01 de Junio 2020 | G95: 30 de Junio de 2020 | H95: 1458000 | I95: 1458000 | J95: REMUNERACION | K95: 2821 | L95: 3772 | M95: YURANIS BONIFAS | N95: COORDINADOR PAIWEB | O95: 2020-06-12 | P95: https://www.contratos.gov.co/consultas/detalleProceso.do?numConstancia=20-4-10843077
A96: 95 | B96: 22468261 | C96: KANYA MALLERLY BERNAL BECERRA | D96: 2290-2020 | E96: DIGITADOR PAI WEB | F96: 01 de Junio 2020 | G96: 30 de Junio de 2020 | H96: 2200000 | I96: 2200000 | J96: REMUNERACION | K96: 2822 | L96: 3773 | M96: YURANIS BONIFAS | N96: COORDINADOR PAIWEB | O96: 2020-06-12 | P96: https://www.contratos.gov.co/consultas/detalleProceso.do?numConstancia=20-4-10843083
A97: 96 | B97: 1001798861 | C97: MARTHA LAURA VIZCAINO PEREZ | D97: 2291-2020 | E97: DIGITADOR PAI WEB | F97: 01 de Junio 2020 | G97: 30 de Junio de 2020 | H97: 1458000 | I97: 1458000 | J97: REMUNERACION | K97: 2823 | L97: 3774 | M97: YURANIS BONIFAS | N97: COORDINADOR PAIWEB | O97: 2020-06-12 | P97: https://www.contratos.gov.co/consultas/detalleProceso.do?numConstancia=20-4-10843091
A98: 97 | B98: 1042439971 | C98: ROGER RAFAEL RAMBAO NIEBLES | D98: 2292-2020 | E98: DIGITADOR PAI WEB | F98: 01 de Junio 2020 | G98: 30 de Junio de 2020 | H98: 1458000 | I98: 1458000 | J98: REMUNERACION | K98: 2825 | L98: 3776 | M98: YURANIS BONIFAS | N98: COORDINADOR PAIWEB | O98: 2020-06-12 | P98: https://www.contratos.gov.co/consultas/detalleProceso.do?numConstancia=20-4-10843093
A99: 98 | B99: 1143447904 | C99: STEFFANY BRIGGITTE ALVAREZ LLERENA | D99: 2293-2020 | E99: RESOLUCION 0273 | F99: 01 de Junio 2020 | G99: 30 de Junio de 2020 | H99: 1653000 | I99: 1653000 | J99: REMUNERACION | K99: 2826 | L99: 3777 | M99: NILSA ARIZA MARQUEZ | N99: COORDINADOR PYP | O99: 2020-06-12 | P99: https://www.contratos.gov.co/consultas/detalleProceso.do?numConstancia=20-4-10843097
A100: 99 | B100: 55250327 | C100: YURANIS BONIFAS CAÑAS | D100: 2294-2020 | E100: COORDINADORA PAIWEB | F100: 01 de Junio 2020 | G100: 30 de Junio de 2020 | H100: 3000000 | I100: 3000000 | J100: HONORARIOS | K100: 2827 | L100: 3778 | M100: NILSA ARIZA MARQUEZ | N100: COORDINADOR PYP | O100: 2020-06-12 | P100: https://www.contratos.gov.co/consultas/detalleProceso.do?numConstancia=20-4-10843101
A101: 100 | B101: 1143132965 | C101: YERLIS PAOLA GAMARRA BORJA | D101: 2295-2020 | E101: DIGITADOR PAI WEB | F101: 01 de Junio 2020 | G101: 30 de Junio de 2020 | H101: 4000000 | I101: 4000000 | J101: REMUNERACION | K101: 2828 | L101: 3779 | M101: YURANIS BONIFAS | N101: COORDINADOR PAIWEB | O101: 2020-06-12 | P101: https://www.contratos.gov.co/consultas/detalleProceso.do?numConstancia=20-4-10843103
A102: 101 | B102: 8566775 | C102: ALEJANDRO LIBARDO ALEMAN MARQUEZ | D102: 2296-2020 | E102: AUXILIAR DE ARCHIVO | F102: 01 de Junio 2020 | G102: 30 de Junio de 2020 | H102: 1500000 | I102: 1500000 | J102: REMUNERACION | K102: 2829 | L102: 3780 | M102: SANDRA SANMARTIN | N102: SUBGERENTE ADMINISTRATIVO | O102: 2020-06-12 | P102: https://www.contratos.gov.co/consultas/detalleProceso.do?numConstancia=20-4-10843109
A103: 102 | B103: 15666678 | C103: ALFREDO ANTONIO RAMIREZ PEREIRA | D103: 2297-2020 | E103: LIDER ARCHIVO CENTRAL | F103: 01 de Junio 2020 | G103: 30 de Junio de 2020 | H103: 3000000 | I103: 3000000 | J103: HONORARIOS | K103: 2830 | L103: 3781 | M103: SANDRA SANMARTIN | N103: SUBGERENTE ADMINISTRATIVO | O103: 2020-06-12 | P103: https://www.contratos.gov.co/consultas/detalleProceso.do?numConstancia=20-4-10843114
A104: 103 | B104: 32813366 | C104: ANA GONZALEZ ZAMBRANO | D104: 2298-2020 | E104: AUXILIAR DE ARCHIVO | F104: 01 de Junio 2020 | G104: 30 de Junio de 2020 | H104: 1500000 | I104: 1500000 | J104: REMUNERACION | K104: 2831 | L104: 3782 | M104: SANDRA SANMARTIN | N104: SUBGERENTE ADMINISTRATIVO | O104: 2020-06-12 | P104: https://www.contratos.gov.co/consultas/detalleProceso.do?numConstancia=20-4-10843119
A105: 104 | B105: 32772038 | C105: ELIANA BEATRIZ ABRIL DE LA ROSA | D105: 2299-2020 | E105: AUXILIAR ADMINISTRATIVO - GESTION DOCUMENTAL TALENTO HUMANO | F105: 01 de Junio 2020 | G105: 30 de Junio de 2020 | H105: 1900000 | I105: 1900000 | J105: REMUNERACION | K105: 2832 | L105: 3783 | M105: FABIAN COLPAS OROZCO | N105: JEFE TALENTO HUMANO | O105: 2020-06-12 | P105: https://www.contratos.gov.co/consultas/detalleProceso.do?numConstancia=20-4-10843122
A106: 105 | B106: 1007045398 | C106: ELIEZER VEGA ARAGON | D106: 2300-2020 | E106: AUXILIAR DE ARCHIVO | F106: 01 de Junio 2020 | G106: 30 de Junio de 2020 | H106: 1500000 | I106: 1500000 | J106: REMUNERACION | K106: 2833 | L106: 3784 | M106: SANDRA SANMARTIN | N106: SUBGERENTE ADMINISTRATIVO | O106: 2020-06-12 | P106: https://www.contratos.gov.co/consultas/detalleProceso.do?numConstancia=20-4-10843125
A107: 106 | B107: 1042448309 | C107: GERALDINE ALEXANDRA MEDRANO IGLESIAS | D107: 2301-2020 | E107: AUXILIAR DE ARCHIVO | F107: 01 de Junio 2020 | G107: 30 de Junio de 2020 | H107: 1500000 | I107: 1500000 | J107: REMUNERACION | K107: 2834 | L107: 3785 | M107: SANDRA SANMARTIN | N107: SUBGERENTE ADMINISTRATIVO | O107: 2020-06-12 | P107: https://www.contratos.gov.co/consultas/detalleProceso.do?numConstancia=20-4-10843128
A108: 107 | B108: 1047337864 | C108: MARTHA MARÍA ARIZA FONTALVO | D108: 2302-2020 | E108: AUXILIAR DE ARCHIVO | F108: 01 de Junio 2020 | G108: 30 de Junio de 2020 | H108: 1500000 | I108: 1500000 | J108: REMUNERACION | K108: 2835 | L108: 3786 | M108: SANDRA SANMARTIN | N108: SUBGERENTE ADMINISTRATIVO | O108: 2020-06-12 | P108: https://www.contratos.gov.co/consultas/detalleProceso.do?numConstancia=20-4-10843129
A109: 108 | B109: 22562553 | C109: SILVANA BEATRIZ GONZALEZ MORENO | D109: 2303-2020 | E109: AUXILIAR ADMINISTRATIVO ALMACEN | F109: 01 de Junio 2020 | G109: 30 de Junio de 2020 | H109: 1900000 | I109: 1900000 | J109: REMUNERACION | K109: 2836 | L109: 3787 | M109: ESTARLEN LECHUGA | N109: JEFE DE ALMACEN | O109: 2020-06-12 | P109: https://www.contratos.gov.co/consultas/detalleProceso.do?numConstancia=20-4-10843131
A110: 109 | B110: 32826802 | C110: ROCIO ISABEL FRIAS COLPAS | D110: 2304-2020 | E110: PERSONAL LIMPIEZA Y ASEO | F110: 01 de Junio 2020 | G110: 30 de Junio de 2020 | H110: 1215000 | I110: 1215000 | J110: REMUNERACION | K110: 2837 | L110: 3788 | M110: JAIME ALVAREZ NORIEGA | N110: INGENIERO AMBIENTAL | O110: 2020-06-12 | P110: https://www.contratos.gov.co/consultas/detalleProceso.do?numConstancia=20-4-10843132
A111: 110 | B111: 1043142073 | C111: DORALIZ ECHEVERRI PEREZ | D111: 2305-2020 | E111: AUXILIAR DE ARCHIVO | F111: 01 de Junio 2020 | G111: 30 de Junio de 2020 | H111: 1500000 | I111: 1500000 | J111: REMUNERACION | K111: 2838 | L111: 3789 | M111: FABIAN COLPAS OROZCO | N111: JEFE TALENTO HUMANO | O111: 2020-06-12 | P111: https://www.contratos.gov.co/consultas/detalleProceso.do?numConstancia=20-4-10843133
A112: 111 | B112: 32826839 | C112: BEATRIZ ISABEL SANMARTIN ESCORCIA | D112: 2306-2020 | E112: VACUNADORA PAI WEB | F112: 01 de Junio 2020 | G112: 30 de Junio de 2020 | H112: 1400000 | I112: 1400000 | J112: REMUNERACION | K112: 2839 | L112: 3790 | M112: YURANIS BONIFAS | N112: COORDINADOR PAIWEB | O112: 2020-06-12 | P112: https://www.contratos.gov.co/consultas/detalleProceso.do?numConstancia=20-4-10843138
A113: 112 | B113: 32811232 | C113: YOLANDA SOFIA MORALES BERMUDEZ | D113: 2307-2020 | E113: VACUNADOR(A) CUARTO FRIO | F113: 01 de Junio 2020 | G113: 30 de Junio de 2020 | H113: 1600000 | I113: 1600000 | J113: REMUNERACION | K113: 2840 | L113: 3791 | M113: ALCIRA DEL SOCORRO GOMEZ ARRIETA | N113: COORDINADORA PAI | O113: 2020-06-12 | P113: https://www.contratos.gov.co/consultas/detalleProceso.do?numConstancia=20-4-10843144
A114: 113 | B114: 60355382 | C114: YEIGNE CONTRERAS BAYONA | D114: 2308-2020 | E114: VACUNADOR(A) | F114: 01 de Junio 2020 | G114: 30 de Junio de 2020 | H114: 1400000 | I114: 1400000 | J114: REMUNERACION | K114: 2841 | L114: 3792 | M114: ALCIRA DEL SOCORRO GOMEZ ARRIETA | N114: COORDINADORA PAI | O114: 2020-06-12 | P114: https://www.contratos.gov.co/consultas/detalleProceso.do?numConstancia=20-4-10843150
A115: 114 | B115: 8647518 | C115: LUIS CARLOS MERCADO MARTINEZ | D115: 2309-2020 | E115: AUXILIAR DE ARCHIVO | F115: 01 de Junio 2020 | G115: 30 de Junio de 2020 | H115: 1900000 | I115: 1900000 | J115: REMUNERACION | K115: 2842 | L115: 3793 | M115: SANDRA SANMARTIN | N115: SUBGERENTE ADMINISTRATIVO | O115: 2020-06-12 | P115: https://www.contratos.gov.co/consultas/detalleProceso.do?numConstancia=20-4-10843178
A116: 115 | B116: 1007124107 | C116: JEAN CARLOS PEÑA CERVANTES | D116: 2310-2020 | E116: AUXILIAR DE ARCHIVO | F116: 01 de Junio 2020 | G116: 30 de Junio de 2020 | H116: 1900000 | I116: 1900000 | J116: REMUNERACION | K116: 2843 | L116: 3794 | M116: SANDRA SANMARTIN | N116: SUBGERENTE ADMINISTRATIVO | O116: 2020-06-12 | P116: https://www.contratos.gov.co/consultas/detalleProceso.do?numConstancia=20-4-10843186
A117: 116 | B117: 32818371 | C117: IVETTE CECILIA SARMIENTO DONADO | D117: 2311-2020 | E117: AUXILIAR DE ARCHIVO | F117: 01 de Junio 2020 | G117: 30 de Junio de 2020 | H117: 1500000 | I117: 1500000 | J117: REMUNERACION | K117: 2844 | L117: 3795 | M117: SANDRA SANMARTIN | N117: SUBGERENTE ADMINISTRATIVO | O117: 2020-06-12 | P117: https://www.contratos.gov.co/consultas/detalleProceso.do?numConstancia=20-4-10843190
A118: 117 | B118: 40993662 | C118: YEIMIS ESTHER DE LAS AGUAS ARIZA | D118: 2312-2020 | E118: AUXILIAR DE ARCHIVO | F118: 01 de Junio 2020 | G118: 30 de Junio de 2020 | H118: 2000000 | I118: 2000000 | J118: REMUNERACION | K118: 2845 | L118: 3796 | M118: SANDRA SANMARTIN | N118: SUBGERENTE ADMINISTRATIVO | O118: 2020-06-12 | P118: https://www.contratos.gov.co/consultas/detalleProceso.do?numConstancia=20-4-10843191
A119: 118 | B119: 72098736 | C119: EVARISTO RAFAEL BARRIOS DE LA ROSA | D119: 2313-2020 | E119: TECNICO DE ALMACEN | F119: 01 de Junio 2020 | G119: 30 de Junio de 2020 | H119: 2300000 | I119: 2300000 | J119: REMUNERACION | K119: 2846 | L119: 3797 | M119: ESTARLEN LECHUGA | N119: JEFE DE ALMACEN | O119: 2020-06-12 | P119: https://www.contratos.gov.co/consultas/detalleProceso.do?numConstancia=20-4-10843192
A120: 119 | B120: 8774531 | C120: MARIANO JOSE UCROS ROMERO | D120: 2314-2020 | E120: AUXILIAR DE ARCHIVO | F120: 01 de Junio 2020 | G120: 30 de Junio de 2020 | H120: 1500000 | I120: 1500000 | J120: REMUNERACION | K120: 2847 | L120: 3798 | M120: SANDRA SANMARTIN | N120: SUBGERENTE ADMINISTRATIVO | O120: 2020-06-12 | P120: https://www.contratos.gov.co/consultas/detalleProceso.do?numConstancia=20-4-10843193
A121: 120 | B121: 1001893516 | C121: ANDREA ALEJANDRA CERVANTES CORNIN | D121: 2315-2020 | E121: AUXILIAR DE ARCHIVO | F121: 01 de Junio 2020 | G121: 30 de Junio de 2020 | H121: 1500000 | I121: 1500000 | J121: REMUNERACION | K121: 2848 | L121: 3799 | M121: SANDRA SANMARTIN | N121: SUBGERENTE ADMINISTRATIVO | O121: 2020-06-12 | P121: https://www.contratos.gov.co/consultas/detalleProceso.do?numConstancia=20-4-10843197
A122: 121 | B122: 22664852 | C122: VILMAIRA JUDITH BOLANO VALENCIA | D122: 2316-2020 | E122: GESTION DOCUMENTAL TALENTO HUMANO | F122: 01 de Junio 2020 | G122: 30 de Junio de 2020 | H122: 1700000 | I122: 1700000 | J122: REMUNERACION | K122: 2849 | L122: 3800 | M122: FABIAN COLPAS OROZCO | N122: JEFE TALENTO HUMANO | O122: 2020-06-12 | P122: https://www.contratos.gov.co/consultas/detalleProceso.do?numConstancia=20-4-10843200
A123: 122 | B123: 72227312 | C123: HUGO CHARRIS PEREZ | D123: 2317-2020 | E123: AUXILIAR DE ARCHIVO | F123: 01 de Junio 2020 | G123: 30 de Junio de 2020 | H123: 1500000 | I123: 1500000 | J123: REMUNERACION | K123: 2850 | L123: 3801 | M123: SANDRA SANMARTIN | N123: SUBGERENTE ADMINISTRATIVO | O123: 2020-06-12 | P123: https://www.contratos.gov.co/consultas/detalleProceso.do?numConstancia=20-4-10843201
A124: 123 | B124: 32816898 | C124: ISABEL OSORIO BARRIOS | D124: 2318-2020 | E124: VACUNADORA PAI WEB | F124: 01 de Junio 2020 | G124: 30 de Junio de 2020 | H124: 1400000 | I124: 1400000 | J124: REMUNERACION | K124: 2851 | L124: 3802 | M124: YURANIS BONIFAS | N124: COORDINADOR PAIWEB | O124: 2020-06-12 | P124: https://www.contratos.gov.co/consultas/detalleProceso.do?numConstancia=20-4-10843202
A125: 124 | B125: 1001800132 | C125: YARIMA CHARRIS BOLAÑO | D125: 2319-2020 | E125: GESTION DOCUMENTAL TALENTO HUMANO | F125: 01 de Junio 2020 | G125: 30 de Junio de 2020 | H125: 1700000 | I125: 1700000 | J125: REMUNERACION | K125: 2852 | L125: 3803 | M125: FABIAN COLPAS OROZCO | N125: JEFE TALENTO HUMANO | O125: 2020-06-12 | P125: https://www.contratos.gov.co/consultas/detalleProceso.do?numConstancia=20-4-10843206
A126: 125 | B126: 55221348 | C126: MERCEDES SUSANA ESTARITA GUTIERREZ DE PIÑERES | D126: 2320-2020 | E126: AUXILIAR DE ARCHIVO | F126: 01 de Junio 2020 | G126: 30 de Junio de 2020 | H126: 2000000 | I126: 2000000 | J126: REMUNERACION | K126: 2853 | L126: 3804 | M126: SANDRA SANMARTIN | N126: SUBGERENTE ADMINISTRATIVO | O126: 2020-06-12 | P126: https://www.contratos.gov.co/consultas/detalleProceso.do?numConstancia=20-4-10843211
A127: 126 | B127: 1001878251 | C127: MAYRA ALEJANDRA ESCORCIA DE LA HOZ | D127: 2321-2020 | E127: AUXILIAR DE ARCHIVO | F127: 01 de Junio 2020 | G127: 30 de Junio de 2020 | H127: 1500000 | I127: 1500000 | J127: REMUNERACION | K127: 2854 | L127: 3805 | M127: SANDRA SANMARTIN | N127: SUBGERENTE ADMINISTRATIVO | O127: 2020-06-13 | P127: https://www.contratos.gov.co/consultas/detalleProceso.do?numConstancia=20-4-10843464
A128: 127 | B128: 22446125 | C128: GENOVEVA MARIA LLANES JEREZ | D128: 2322-2020 | E128: VACUNADORA PAI WEB | F128: 01 de Junio 2020 | G128: 30 de Junio de 2020 | H128: 1400000 | I128: 1400000 | J128: REMUNERACION | K128: 2855 | L128: 3806 | M128: YURANIS BONIFAS | N128: COORDINADOR PAIWEB | O128: 2020-06-13 | P128: https://www.contratos.gov.co/consultas/detalleProceso.do?numConstancia=20-4-10843491
A129: 128 | B129: 72098690 | C129: JAVIER ENRIQUE BARANDICA | D129: 2323-2020 | E129: TECNICO DE ALMACEN | F129: 01 de Junio 2020 | G129: 30 de Junio de 2020 | H129: 2300000 | I129: 2300000 | J129: REMUNERACION | K129: 2856 | L129: 3807 | M129: ESTARLEN LECHUGA | N129: JEFE DE ALMACEN | O129: 2020-06-13 | P129: https://www.contratos.gov.co/consultas/detalleProceso.do?numConstancia=20-4-10843496
A130: 129 | B130: 1043002864 | C130: JAIRO ISACC BARRIOS AVILA | D130: 2324-2020 | E130: AUXILIAR DE ARCHIVO | F130: 01 de Junio 2020 | G130: 30 de Junio de 2020 | H130: 1900000 | I130: =+H130*1 -> 1900000 | J130: REMUNERACION | K130: 2857 | L130: 3808 | M130: SANDRA SANMARTIN | N130: SUBGERENTE ADMINISTRATIVO | O130: 2020-06-13 | P130: https://www.contratos.gov.co/consultas/detalleProceso.do?numConstancia=20-4-10843498
A131: 130 | B131: 1001881009 | C131: ARMANDO JOSE JINETE BARRIOS | D131: 2325-2020 | E131: AUXILIAR DE ARCHIVO | F131: 01 de Junio 2020 | G131: 30 de Junio de 2020 | H131: 1500000 | I131: 1500000 | J131: REMUNERACION | K131: 2858 | L131: 3809 | M131: SANDRA SANMARTIN | N131: SUBGERENTE ADMINISTRATIVO | O131: 2020-06-13 | P131: https://www.contratos.gov.co/consultas/detalleProceso.do?numConstancia=20-4-10843502
A132: =+A131+1 -> 131 | B132: 55309225 | C132: ADRIANA BALLESTAS MARTINEZ | D132: 2326-2020 | E132: MEDICO DE URGENCIA | F132: 01 de Junio 2020 | G132: 30 de Junio de 2020 | H132: 3072000 | I132: 3072000 | J132: HONORARIOS | K132: 2859 | L132: 3810 | M132: SERGIO BOVEA MARIN | N132: COORD CENTRO DE SALUD | O132: 2020-06-13 | P132: https://www.contratos.gov.co/consultas/detalleProceso.do?numConstancia=20-4-10843504
A133: 132 | B133: 1042428171 | C133: ALEX ENRIQUE VILLARREAL IBAÑEZ | D133: 2327-2020 | E133: ODONTOLOGO | F133: 01 de Junio 2020 | G133: 30 de Junio de 2020 | H133: 1900000 | I133: 1900000 | J133: HONORARIOS | K133: 2860 | L133: 3811 | M133: SERGIO BOVEA MARIN | N133: COORD CENTRO DE SALUD | O133: 2020-06-13 | P133: https://www.contratos.gov.co/consultas/detalleProceso.do?numConstancia=20-4-10843506
A134: 133 | B134: 22523223 | C134: ALEXANDRA ESTHER MOLINA PEREZ | D134: 2328-2020 | E134: PERSONAL LIMPIEZA Y ASEO URGENCIA | F134: 01 de Junio 2020 | G134: 30 de Junio de 2020 | H134: 1653600 | I134: 1653600 | J134: REMUNERACION | K134: 2861 | L134: 3812 | M134: JAIME ALVAREZ NORIEGA | N134: INGENIERO AMBIENTAL | O134: 2020-06-13 | P134: https://www.contratos.gov.co/consultas/detalleProceso.do?numConstancia=20-4-10843509
A135: 134 | B135: 72000601 | C135: ALEXIS JAVIER SUAREZ CABALLERO | D135: 2329-2020 | E135: AUXILIAR DE FACTURACIÓN URGENCIA | F135: 01 de Junio 2020 | G135: 30 de Junio de 2020 | H135: 1680000 | I135: 1680000 | J135: REMUNERACION | K135: 2862 | L135: 3813 | M135: SANDRA SANMARTIN | N135: SUBGERENTE ADMINISTRATIVO | O135: 2020-06-13 | P135: https://www.contratos.gov.co/consultas/detalleProceso.do?numConstancia=20-4-10843512
A136: 135 | B136: 8697543 | C136: ALVARO ARENAS GONZALEZ | D136: 2330-2020 | E136: MEDICO DE RUTA INTEGRAL MATERNO PERINATAL | F136: 01 de Junio 2020 | G136: 30 de Junio de 2020 | H136: 5088000 | I136: 5088000 | J136: HONORARIOS | K136: 2863 | L136: 3814 | M136: NILSA ARIZA MARQUEZ | N136: COORDINADOR PYP | O136: 2020-06-13 | P136: https://www.contratos.gov.co/consultas/detalleProceso.do?numConstancia=20-4-10843521
A137: 136 | B137: 8501206 | C137: AUGUSTO RAFAEL VALENCIA OCAMPO | D137: 2331-2020 | E137: AUXILIAR DE FACTURACIÓN URGENCIA | F137: 01 de Junio 2020 | G137: 30 de Junio de 2020 | H137: 1680000 | I137: 1680000 | J137: REMUNERACION | K137: 2864 | L137: 3815 | M137: SERGIO BOVEA MARIN | N137: COORD CENTRO DE SALUD | O137: 2020-06-13 | P137: https://www.contratos.gov.co/consultas/detalleProceso.do?numConstancia=20-4-10843524
A138: 137 | B138: 1140872217 | C138: BLEYDIS LORAINE PELAEZ LOBO | D138: 2332-2020 | E138: MEDICO DE URGENCIA | F138: 01 de Junio 2020 | G138: 30 de Junio de 2020 | H138: 3072000 | I138: 3072000 | J138: HONORARIOS | K138: 2865 | L138: 3816 | M138: SERGIO BOVEA MARIN | N138: COORD CENTRO DE SALUD | O138: 2020-06-13 | P138: https://www.contratos.gov.co/consultas/detalleProceso.do?numConstancia=20-4-10843528
A139: 138 | B139: 44158949 | C139: CARMEN PACHECO VARELA | D139: 2333-2020 | E139: PERSONAL LIMPIEZA Y ASEO URGENCIA | F139: 01 de Junio 2020 | G139: 30 de Junio de 2020 | H139: 1653600 | I139: 1653600 | J139: REMUNERACION | K139: 2866 | L139: 3817 | M139: JAIME ALVAREZ NORIEGA | N139: INGENIERO AMBIENTAL | O139: 2020-06-13 | P139: https://www.contratos.gov.co/consultas/detalleProceso.do?numConstancia=20-4-10843530
A140: 139 | B140: 32712485 | C140: CASILDA LARA SOLANO | D140: 2334-2020 | E140: MEDICO DE RUTA INTEGRAL MATERNO PERINATAL | F140: 01 de Junio 2020 | G140: 30 de Junio de 2020 | H140: 2120000 | I140: 2120000 | J140: HONORARIOS | K140: 2867 | L140: 3818 | M140: NILSA ARIZA MARQUEZ | N140: COORDINADOR PYP | O140: 2020-06-13 | P140: https://www.contratos.gov.co/consultas/detalleProceso.do?numConstancia=20-4-10843532
A141: 140 | B141: 1042442558 | C141: DANISA PAOLA BARRIOS DE ALBA | D141: 2335-2020 | E141: NUTRICIONISTA | F141: 01 de Junio 2020 | G141: 30 de Junio de 2020 | H141: 2760000 | I141: 2760000 | J141: HONORARIOS | K141: 2868 | L141: 3819 | M141: SERGIO BOVEA MARIN | N141: COORD CENTRO DE SALUD | O141: 2020-06-13 | P141: https://www.contratos.gov.co/consultas/detalleProceso.do?numConstancia=20-4-10843533
A142: 141 | B142: 1082405551 | C142: DESIRETH ESTRADA FERNANDEZ | D142: 2336-2020 | E142: ENFERMERA JEFE DE PROMOCIÓN Y MANTENIMIENTO DE LA SALUD | F142: 01 de Junio 2020 | G142: 30 de Junio de 2020 | H142: =2300000 -> 2300000 | I142: 2300000 | J142: HONORARIOS | K142: 2869 | L142: 3820 | M142: NILSA ARIZA MARQUEZ | N142: COORDINADOR PYP | O142: 2020-06-13 | P142: https://www.contratos.gov.co/consultas/detalleProceso.do?numConstancia=20-4-10843537
A143: 142 | B143: 32818082 | C143: DIVINA LUZ NIETO ZAMBRANO | D143: 2337-2020 | E143: PERSONAL LIMPIEZA Y ASEO URGENCIA | F143: 01 de Junio 2020 | G143: 30 de Junio de 2020 | H143: 1653600 | I143: 1653600 | J143: REMUNERACION | K143: 2870 | L143: 3821 | M143: JAIME ALVAREZ NORIEGA | N143: INGENIERO AMBIENTAL | O143: 2020-06-13 | P143: https://www.contratos.gov.co/consultas/detalleProceso.do?numConstancia=20-4-10843540
A144: 143 | B144: 32741368 | C144: DOLLYS YERAYS GOMEZ RODRIGUEZ | D144: 2338-2020 | E144: ASISTENTE COORDINACIÓN MÉDICA | F144: 01 de Junio 2020 | G144: 30 de Junio de 2020 | H144: 1900000 | I144: 1900000 | J144: REMUNERACION | K144: 2871 | L144: 3822 | M144: SERGIO BOVEA MARIN | N144: COORD CENTRO DE SALUD | O144: 2020-06-13 | P144: https://www.contratos.gov.co/consultas/detalleProceso.do?numConstancia=20-4-10843542
A145: 144 | B145: 8734956 | C145: EFRAIN CANTILLO GUERRERO | D145: 2339-2020 | E145: CONDUCTOR DE AMBULANCIA | F145: 01 de Junio 2020 | G145: 30 de Junio de 2020 | H145: 2160000 | I145: 2160000 | J145: REMUNERACION | K145: 2872 | L145: 3823 | M145: BETTY PERTUZ | N145: SUBGERENTE CIENTIFICO | O145: 2020-06-13 | P145: https://www.contratos.gov.co/consultas/detalleProceso.do?numConstancia=20-4-10843544
A146: 145 | B146: 8750161 | C146: EFRAIN DE LA HOZ ROCHEL | D146: 2340-2020 | E146: MEDICO DE URGENCIA | F146: 01 de Junio 2020 | G146: 30 de Junio de 2020 | H146: 3072000 | I146: 3072000 | J146: HONORARIOS | K146: 2873 | L146: 3824 | M146: SERGIO BOVEA MARIN | N146: COORD CENTRO DE SALUD | O146: 2020-06-13 | P146: https://www.contratos.gov.co/consultas/detalleProceso.do?numConstancia=20-4-10843545
A147: 146 | B147: 1042436156 | C147: EMELY ESCORCIA MARTINEZ | D147: 2341-2020 | E147: ENFERMERA JEFE URGENCIAS | F147: 01 de Junio 2020 | G147: 30 de Junio de 2020 | H147: 2280000 | I147: 2280000 | J147: HONORARIOS | K147: 2874 | L147: 3825 | M147: SERGIO BOVEA MARIN | N147: COORD CENTRO DE SALUD | O147: 2020-06-13 | P147: https://www.contratos.gov.co/consultas/detalleProceso.do?numConstancia=20-4-10843547
A148: 147 | B148: 22693401 | C148: EMILIA ANTONIA BARCELO DE PARRA | D148: 2342-2020 | E148: PERSONAL LIMPIEZA Y ASEO URGENCIA | F148: 01 de Junio 2020 | G148: 30 de Junio de 2020 | H148: 1653600 | I148: 1653600 | J148: REMUNERACION | K148: 2875 | L148: 3826 | M148: JAIME ALVAREZ NORIEGA | N148: INGENIERO AMBIENTAL | O148: 2020-06-13 | P148: https://www.contratos.gov.co/consultas/detalleProceso.do?numConstancia=20-4-10843548
A149: 148 | B149: 8718276 | C149: ENRIQUE PACHECO PACHECO | D149: 2343-2020 | E149: MEDICO DE URGENCIA | F149: 01 de Junio 2020 | G149: 30 de Junio de 2020 | H149: 3072000 | I149: 3072000 | J149: HONORARIOS | K149: 2876 | L149: 3827 | M149: SERGIO BOVEA MARIN | N149: COORD CENTRO DE SALUD | O149: 2020-06-13 | P149: https://www.contratos.gov.co/consultas/detalleProceso.do?numConstancia=20-4-10843549
A150: 149 | B150: 32821813 | C150: ESPERANZA OROZCO MORENO | D150: 2344-2020 | E150: AUXILIAR DE ENFERMERIA URGENCIAS | F150: 01 de Junio 2020 | G150: 30 de Junio de 2020 | H150: 1653600 | I150: 1653600 | J150: REMUNERACION | K150: 2877 | L150: 3828 | M150: SERGIO BOVEA MARIN | N150: COORD CENTRO DE SALUD | O150: 2020-06-13 | P150: https://www.contratos.gov.co/consultas/detalleProceso.do?numConstancia=20-4-10843551
A151: 150 | B151: 1042448518 | C151: GIANINA ANDREA GRAVINI DE LA HOZ | D151: 2345-2020 | E151: MEDICO DE URGENCIA | F151: 01 de Junio 2020 | G151: 30 de Junio de 2020 | H151: 3072000 | I151: 3072000 | J151: HONORARIOS | K151: 2878 | L151: 3829 | M151: SERGIO BOVEA MARIN | N151: COORD CENTRO DE SALUD | O151: 2020-06-13 | P151: https://www.contratos.gov.co/consultas/detalleProceso.do?numConstancia=20-4-10843552
A152: 151 | B152: 49555306 | C152: GLADYS DIAZ MARIN | D152: 2346-2020 | E152: AUXILIAR DE FACTURACION URGENCIA | F152: 01 de Junio 2020 | G152: 30 de Junio de 2020 | H152: 1680000 | I152: 1680000 | J152: REMUNERACION | K152: 2879 | L152: 3830 | M152: SANDRA SANMARTIN | N152: SUBGERENTE ADMINISTRATIVO | O152: 2020-06-13 | P152: https://www.contratos.gov.co/consultas/detalleProceso.do?numConstancia=20-4-10843553
A153: 152 | B153: 1042440903 | C153: HEIDY MARTINEZ GUTIERREZ | D153: 2347-2020 | E153: AUXILIAR DE FACTURACION URGENCIA | F153: 01 de Junio 2020 | G153: 30 de Junio de 2020 | H153: 1680000 | I153: 1680000 | J153: REMUNERACION | K153: 2880 | L153: 3831 | M153: SANDRA SANMARTIN | N153: SUBGERENTE ADMINISTRATIVO | O153: 2020-06-13 | P153: https://www.contratos.gov.co/consultas/detalleProceso.do?numConstancia=20-4-10843554
A154: 153 | B154: 32861543 | C154: INGRID NAVARRO CARRILLO | D154: 2348-2020 | E154: FISIOTERAPEUTA | F154: 01 de Junio 2020 | G154: 30 de Junio de 2020 | H154: 5800000 | I154: 5800000 | J154: HONORARIOS | K154: 2881 | L154: 3832 | M154: SERGIO BOVEA MARIN | N154: COORD CENTRO DE SALUD | O154: 2020-06-13 | P154: https://www.contratos.gov.co/consultas/detalleProceso.do?numConstancia=20-4-10843557
A155: 154 | B155: 32822389 | C155: ISABEL AMÉRICA DE ALBA RODRIGUEZ | D155: 2349-2020 | E155: AUXILIAR DE FACTURACION | F155: 01 de Junio 2020 | G155: 30 de Junio de 2020 | H155: 1400000 | I155: 1400000 | J155: REMUNERACION | K155: 2882 | L155: 3833 | M155: SANDRA SANMARTIN | N155: SUBGERENTE ADMINISTRATIVO | O155: 2020-06-13 | P155: https://www.contratos.gov.co/consultas/detalleProceso.do?numConstancia=20-4-10843558
A156: 155 | B156: 72429926 | C156: JAIRO ESCOBAR ROMERO | D156: 2350-2020 | E156: MEDICO DE URGENCIA | F156: 01 de Junio 2020 | G156: 30 de Junio de 2020 | H156: 3072000 | I156: 3072000 | J156: HONORARIOS | K156: 2883 | L156: 3834 | M156: SERGIO BOVEA MARIN | N156: COORD CENTRO DE SALUD | O156: 2020-06-13 | P156: https://www.contratos.gov.co/consultas/detalleProceso.do?numConstancia=20-4-10843559
A157: 156 | B157: 32869709 | C157: JENECIS BARRERA MIRANDA | D157: 2351-2020 | E157: ENFERMERA JEFE DE RUTA INTEGRAL MATERNO PERINATAL | F157: 01 de Junio 2020 | G157: 30 de Junio de 2020 | H157: 2760000 | I157: 2760000 | J157: HONORARIOS | K157: 2884 | L157: 3835 | M157: NILSA ARIZA MARQUEZ | N157: COORDINADOR PYP | O157: 2020-06-13 | P157: https://www.contratos.gov.co/consultas/detalleProceso.do?numConstancia=20-4-10843561
A158: 157 | B158: 1042444925 | C158: JESUS MORENO DE ALBA | D158: 2352-2020 | E158: AUXILIAR DE FACTURACION URGENCIA | F158: 01 de Junio 2020 | G158: 30 de Junio de 2020 | H158: 1680000 | I158: 1680000 | J158: REMUNERACION | K158: 2885 | L158: 3836 | M158: SANDRA SANMARTIN | N158: SUBGERENTE ADMINISTRATIVO | O158: 2020-06-13 | P158: https://www.contratos.gov.co/consultas/detalleProceso.do?numConstancia=20-4-10843562
A159: 158 | B159: 44161544 | C159: JHOANA CATALINA SANDOVAL ESCORCIA | D159: 2353-2020 | E159: ENFERMERA JEFE URGENCIAS | F159: 01 de Junio 2020 | G159: 30 de Junio de 2020 | H159: 2280000 | I159: 2280000 | J159: HONORARIOS | K159: 2886 | L159: 3837 | M159: SERGIO BOVEA MARIN | N159: COORD CENTRO DE SALUD | O159: 2020-06-13 | P159: https://www.contratos.gov.co/consultas/detalleProceso.do?numConstancia=20-4-10843563
A160: 159 | B160: 32810582 | C160: JOSEFINA CARO VITOLA | D160: 2354-2020 | E160: AUXILIAR DE ENFERMERIA URGENCIAS | F160: 01 de Junio 2020 | G160: 30 de Junio de 2020 | H160: 1653600 | I160: 1653600 | J160: REMUNERACION | K160: 2887 | L160: 3838 | M160: SERGIO BOVEA MARIN | N160: COORD CENTRO DE SALUD | O160: 2020-06-13 | P160: https://www.contratos.gov.co/consultas/detalleProceso.do?numConstancia=20-4-10843565
A161: 160 | B161: 32771594 | C161: JUANA DIAZ CARABALLO | D161: 2355-2020 | E161: AUXILIAR DE ENFERMERIA URGENCIAS | F161: 01 de Junio 2020 | G161: 30 de Junio de 2020 | H161: 1653600 | I161: 1653600 | J161: REMUNERACION | K161: 2888 | L161: 3839 | M161: SERGIO BOVEA MARIN | N161: COORD CENTRO DE SALUD | O161: 2020-06-13 | P161: https://www.contratos.gov.co/consultas/detalleProceso.do?numConstancia=20-4-10843568
A162: 161 | B162: 1043841968 | C162: KAREN DAYANA FONSECA MUÑOZ | D162: 2356-2020 | E162: MEDICO DE URGENCIA | F162: 01 de Junio 2020 | G162: 30 de Junio de 2020 | H162: 3072000 | I162: 3072000 | J162: HONORARIOS | K162: 2889 | L162: 3840 | M162: SERGIO BOVEA MARIN | N162: COORD CENTRO DE SALUD | O162: 2020-06-13 | P162: https://www.contratos.gov.co/consultas/detalleProceso.do?numConstancia=20-4-10843573
A163: 162 | B163: 55313269 | C163: KAREN MARTINEZ BRANGO | D163: 2357-2020 | E163: AUXILIAR DE ENFERMERIA URGENCIAS | F163: 01 de Junio 2020 | G163: 30 de Junio de 2020 | H163: 1653600 | I163: 1653600 | J163: REMUNERACION | K163: 2890 | L163: 3841 | M163: SERGIO BOVEA MARIN | N163: COORD CENTRO DE SALUD | O163: 2020-06-13 | P163: https://www.contratos.gov.co/consultas/detalleProceso.do?numConstancia=20-4-10843574
A164: 163 | B164: 22534402 | C164: KATERINE RUA SUAREZ | D164: 2358-2020 | E164: AUXILIAR DE FACTURACION URGENCIA | F164: 01 de Junio 2020 | G164: 30 de Junio de 2020 | H164: 1680000 | I164: 1680000 | J164: REMUNERACION | K164: 2891 | L164: 3842 | M164: SANDRA SANMARTIN | N164: SUBGERENTE ADMINISTRATIVO | O164: 2020-06-13 | P164: https://www.contratos.gov.co/consultas/detalleProceso.do?numConstancia=20-4-10843575
A165: 164 | B165: 55301340 | C165: KATYA LILIANA NORIEGA BARRIOS | D165: 2359-2020 | E165: AUXILIAR DE ENFERMERIA URGENCIAS | F165: 01 de Junio 2020 | G165: 30 de Junio de 2020 | H165: 1653600 | I165: 1653600 | J165: REMUNERACION | K165: 2892 | L165: 3843 | M165: SERGIO BOVEA MARIN | N165: COORD CENTRO DE SALUD | O165: 2020-06-13 | P165: https://www.contratos.gov.co/consultas/detalleProceso.do?numConstancia=20-4-10843576
A166: 165 | B166: 1045697885 | C166: LAURA ALANDETE CASTRO | D166: 2360-2020 | E166: MEDICO DE URGENCIA | F166: 01 de Junio 2020 | G166: 30 de Junio de 2020 | H166: 3072000 | I166: 3072000 | J166: HONORARIOS | K166: 2893 | L166: 3844 | M166: SERGIO BOVEA MARIN | N166: COORD CENTRO DE SALUD | O166: 2020-06-13 | P166: https://www.contratos.gov.co/consultas/detalleProceso.do?numConstancia=20-4-10843578
A167: 166 | B167: 1045712889 | C167: LEYDILLY ROJANO GOMEZ | D167: 2361-2020 | E167: ENFERMERA JEFE URGENCIAS | F167: 01 de Junio 2020 | G167: 30 de Junio de 2020 | H167: 2280000 | I167: 2280000 | J167: HONORARIOS | K167: 2894 | L167: 3845 | M167: SERGIO BOVEA MARIN | N167: COORD CENTRO DE SALUD | O167: 2020-06-13 | P167: https://www.contratos.gov.co/consultas/detalleProceso.do?numConstancia=20-4-10843581
A168: 167 | B168: 22533893 | C168: LILIANA VARGAS MONTERO | D168: 2362-2020 | E168: ENFERMERA JEFE DE PROMOCIÓN Y MANTENIMIENTO DE LA SALUD | F168: 01 de Junio 2020 | G168: 30 de Junio de 2020 | H168: 2300000 | I168: 2300000 | J168: HONORARIOS | K168: 2895 | L168: 3846 | M168: NILSA ARIZA MARQUEZ | N168: COORDINADOR PYP | O168: 2020-06-13 | P168: https://www.contratos.gov.co/consultas/detalleProceso.do?numConstancia=20-4-10843582
A169: 168 | B169: 1042426533 | C169: LIZ CATERINE ARROYO ROMERO | D169: 2363-2020 | E169: AUXILIAR DE FARMACIA | F169: 01 de Junio 2020 | G169: 30 de Junio de 2020 | H169: 1524000 | I169: 1524000 | J169: REMUNERACION | K169: 2896 | L169: 3847 | M169: BETTY PERTUZ | N169: SUBGERENTE CIENTIFICO | O169: 2020-06-13 | P169: https://www.contratos.gov.co/consultas/detalleProceso.do?numConstancia=20-4-10843584
A170: 169 | B170: 32716780 | C170: LORAINE PASION ARDILA | D170: 2364-2020 | E170: TRABAJADORA SOCIAL | F170: 01 de Junio 2020 | G170: 30 de Junio de 2020 | H170: 2760000 | I170: 2760000 | J170: HONORARIOS | K170: 2897 | L170: 3848 | M170: SERGIO BOVEA MARIN | N170: COORD CENTRO DE SALUD | O170: 2020-06-13 | P170: https://www.contratos.gov.co/consultas/detalleProceso.do?numConstancia=20-4-10843587
A171: 170 | B171: 8672260 | C171: LUIS MIGUEL REYES LANCE | D171: 2365-2020 | E171: ORIENTADOR | F171: 01 de Junio 2020 | G171: 30 de Junio de 2020 | H171: 1524000 | I171: 1524000 | J171: REMUNERACION | K171: 2898 | L171: 3849 | M171: SERGIO BOVEA MARIN | N171: COORD CENTRO DE SALUD | O171: 2020-06-13 | P171: https://www.contratos.gov.co/consultas/detalleProceso.do?numConstancia=20-4-10843589
A172: 171 | B172: 32825666 | C172: LUZ STELLA RUIZ SUAREZ | D172: 2366-2020 | E172: AUXILIAR DE ENFERMERIA DE RUTA INTEGRAL MATERNO PERINATAL | F172: 01 de Junio 2020 | G172: 30 de Junio de 2020 | H172: 1399200 | I172: 1399200 | J172: REMUNERACION | K172: 2899 | L172: 3850 | M172: NILSA ARIZA MARQUEZ | N172: COORDINADOR PYP | O172: 2020-06-13 | P172: https://www.contratos.gov.co/consultas/detalleProceso.do?numConstancia=20-4-10843591
A173: 172 | B173: 32697306 | C173: MAGALY POLO ARNEDO | D173: 2367-2020 | E173: ODONTOLOGO | F173: 01 de Junio 2020 | G173: 30 de Junio de 2020 | H173: 1900000 | I173: 1900000 | J173: HONORARIOS | K173: 2900 | L173: 3851 | M173: SERGIO BOVEA MARIN | N173: COORD CENTRO DE SALUD | O173: 2020-06-13 | P173: https://www.contratos.gov.co/consultas/detalleProceso.do?numConstancia=20-4-10843594
A174: 173 | B174: 1140849940 | C174: MAICOL JOSE MOLINA SOTO | D174: 2368-2020 | E174: MEDICO DE URGENCIA | F174: 01 de Junio 2020 | G174: 30 de Junio de 2020 | H174: 3072000 | I174: 3072000 | J174: HONORARIOS | K174: 2901 | L174: 3852 | M174: SERGIO BOVEA MARIN | N174: COORD CENTRO DE SALUD | O174: 2020-06-13 | P174: https://www.contratos.gov.co/consultas/detalleProceso.do?numConstancia=20-4-10843595
A175: 174 | B175: 22644933 | C175: MARGARITA PACHECO GUTIERREZ | D175: 2369-2020 | E175: HIGIENISTA ORAL | F175: 01 de Junio 2020 | G175: 30 de Junio de 2020 | H175: 2332000 | I175: 2332000 | J175: REMUNERACION | K175: 2902 | L175: 3853 | M175: SERGIO BOVEA MARIN | N175: COORD CENTRO DE SALUD | O175: 2020-06-13 | P175: https://www.contratos.gov.co/consultas/detalleProceso.do?numConstancia=20-4-10843596
A176: 175 | B176: 1042450048 | C176: MARIA ALEJANDRA DE LA HOZ TOSCANO | D176: 2370-2020 | E176: MEDICO DE URGENCIA | F176: 01 de Junio 2020 | G176: 30 de Junio de 2020 | H176: 3072000 | I176: 3072000 | J176: HONORARIOS | K176: 2903 | L176: 3854 | M176: SERGIO BOVEA MARIN | N176: COORD CENTRO DE SALUD | O176: 2020-06-13 | P176: https://www.contratos.gov.co/consultas/detalleProceso.do?numConstancia=20-4-10843597
A177: 176 | B177: 1004093696 | C177: MARIA ALTAMAR OROZCO | D177: 2371-2020 | E177: AUXILIAR DE ENFERMERIA URGENCIAS | F177: 01 de Junio 2020 | G177: 30 de Junio de 2020 | H177: 1653600 | I177: 1653600 | J177: REMUNERACION | K177: 2904 | L177: 3855 | M177: SERGIO BOVEA MARIN | N177: COORD CENTRO DE SALUD | O177: 2020-06-13 | P177: https://www.contratos.gov.co/consultas/detalleProceso.do?numConstancia=20-4-10843599
A178: 177 | B178: 32789239 | C178: MARIA DEL CARMEN GUERRERO OJEDA | D178: 2372-2020 | E178: ORIENTADOR | F178: 01 de Junio 2020 | G178: 30 de Junio de 2020 | H178: 1524000 | I178: 1524000 | J178: REMUNERACION | K178: 2905 | L178: 3856 | M178: SERGIO BOVEA MARIN | N178: COORD CENTRO DE SALUD | O178: 2020-06-13 | P178: https://www.contratos.gov.co/consultas/detalleProceso.do?numConstancia=20-4-10843600
A179: 178 | B179: 1129572439 | C179: SHIRLEY CONSUEGRA OLAYA | D179: 2373-2020 | E179: REFERENCIA Y CONTRAREFERENCIA | F179: 01 de Junio 2020 | G179: 30 de Junio de 2020 | H179: 1524000 | I179: 1524000 | J179: REMUNERACION | K179: 2906 | L179: 3857 | M179: SERGIO BOVEA MARIN | N179: COORD CENTRO DE SALUD | O179: 2020-06-13 | P179: https://www.contratos.gov.co/consultas/detalleProceso.do?numConstancia=20-4-10843604
A180: 179 | B180: 32879250 | C180: MARIA SEGURA MEJIA | D180: 2374-2020 | E180: AUXILIAR FACTURACION URGENCIA | F180: 01 de Junio 2020 | G180: 30 de Junio de 2020 | H180: 1680000 | I180: 1680000 | J180: REMUNERACION | K180: 2907 | L180: 3858 | M180: SANDRA SANMARTIN | N180: SUBGERENTE ADMINISTRATIVO | O180: 2020-06-13 | P180: https://www.contratos.gov.co/consultas/detalleProceso.do?numConstancia=20-4-10843606
A181: 180 | B181: 72158729 | C181: MARLON CAMILO JORDAN HERRERA | D181: 2375-2020 | E181: REFERENCIA Y CONTRAREFERENCIA | F181: 01 de Junio 2020 | G181: 30 de Junio de 2020 | H181: 1776000 | I181: 1776000 | J181: REMUNERACION | K181: 2908 | L181: 3859 | M181: SERGIO BOVEA MARIN | N181: COORD CENTRO DE SALUD | O181: 2020-06-13 | P181: https://www.contratos.gov.co/consultas/detalleProceso.do?numConstancia=20-4-10843608
A182: 181 | B182: 22457575 | C182: MELBA MEZA PERDOMO | D182: 2376-2020 | E182: TRABAJADORA SOCIAL | F182: 01 de Junio 2020 | G182: 30 de Junio de 2020 | H182: 2200000 | I182: 2200000 | J182: HONORARIOS | K182: 2909 | L182: 3860 | M182: SERGIO BOVEA MARIN | N182: COORD CENTRO DE SALUD | O182: 2020-06-13 | P182: https://www.contratos.gov.co/consultas/detalleProceso.do?numConstancia=20-4-10843609
A183: 182 | B183: 8507626 | C183: MIGUEL ALVAREZ SALCEDO | D183: 2377-2020 | E183: CONDUCTOR DE AMBULANCIA | F183: 01 de Junio 2020 | G183: 30 de Junio de 2020 | H183: 2160000 | I183: 2160000 | J183: REMUNERACION | K183: 2910 | L183: 3861 | M183: BETTY PERTUZ | N183: SUBGERENTE CIENTIFICO | O183: 2020-06-13 | P183: https://www.contratos.gov.co/consultas/detalleProceso.do?numConstancia=20-4-10843612
A184: 183 | B184: 32829349 | C184: NADIA BOVEA NIETO | D184: 2378-2020 | E184: AUXILIAR DE ENFERMERIA URGENCIAS | F184: 01 de Junio 2020 | G184: 30 de Junio de 2020 | H184: 1653600 | I184: 1653600 | J184: REMUNERACION | K184: 2911 | L184: 3862 | M184: SERGIO BOVEA MARIN | N184: COORD CENTRO DE SALUD | O184: 2020-06-13 | P184: https://www.contratos.gov.co/consultas/detalleProceso.do?numConstancia=20-4-10843613
A185: 184 | B185: 55307414 | C185: NATALY DE LAS SALAS ORTEGA | D185: 2379-2020 | E185: PSICOLOGA | F185: 01 de Junio 2020 | G185: 30 de Junio de 2020 | H185: 3000000 | I185: 3000000 | J185: HONORARIOS | K185: 2912 | L185: 3863 | M185: BETTY PERTUZ | N185: SUBGERENTE CIENTIFICO | O185: 2020-06-13 | P185: https://www.contratos.gov.co/consultas/detalleProceso.do?numConstancia=20-4-10843614
A186: 185 | B186: 32783935 | C186: NELBY CORRALES HOYOS | D186: 2380-2020 | E186: AUXILIAR DE ENFERMERIA URGENCIAS | F186: 01 de Junio 2020 | G186: 30 de Junio de 2020 | H186: 1653600 | I186: 1653600 | J186: REMUNERACION | K186: 2913 | L186: 3864 | M186: SERGIO BOVEA MARIN | N186: COORD CENTRO DE SALUD | O186: 2020-06-13 | P186: https://www.contratos.gov.co/consultas/detalleProceso.do?numConstancia=20-4-10843615
A187: 186 | B187: 32819548 | C187: NELLY GALAN HEILBRON | D187: 2381-2020 | E187: AUXILIAR DE ENFERMERIA PROMOTORA EN SALUD | F187: 01 de Junio 2020 | G187: 30 de Junio de 2020 | H187: 1215000 | I187: 1215000 | J187: REMUNERACION | K187: 2914 | L187: 3865 | M187: NILSA ARIZA MARQUEZ | N187: COORDINADOR PYP | O187: 2020-06-13 | P187: https://www.contratos.gov.co/consultas/detalleProceso.do?numConstancia=20-4-10843617
A188: 187 | B188: 72222215 | C188: NILSON ALMARALES GARIZABALO | D188: 2382-2020 | E188: MEDICO MATERNIDAD SEGURA Y URGENCIA | F188: 01 de Junio 2020 | G188: 30 de Junio de 2020 | H188: 6212000 | I188: 6212000 | J188: HONORARIOS | K188: 2915 | L188: 3866 | M188: NILSA ARIZA MARQUEZ | N188: COORDINADOR PYP | O188: 2020-06-13 | P188: https://www.contratos.gov.co/consultas/detalleProceso.do?numConstancia=20-4-10843619
A189: 188 | B189: 22646712 | C189: NINI JOHANA SOLANO MORENO | D189: 2383-2020 | E189: ENFERMERA JEFE URGENCIAS | F189: 01 de Junio 2020 | G189: 30 de Junio de 2020 | H189: 2280000 | I189: 2280000 | J189: HONORARIOS | K189: 2916 | L189: 3867 | M189: SERGIO BOVEA MARIN | N189: COORD CENTRO DE SALUD | O189: 2020-06-13 | P189: https://www.contratos.gov.co/consultas/detalleProceso.do?numConstancia=20-4-10843620
A190: 189 | B190: 22564359 | C190: NINI JOHANNA QUIROZ SANTOS | D190: 2384-2020 | E190: MEDICO DE URGENCIA | F190: 01 de Junio 2020 | G190: 30 de Junio de 2020 | H190: 3072000 | I190: 3072000 | J190: HONORARIOS | K190: 2917 | L190: 3868 | M190: SERGIO BOVEA MARIN | N190: COORD CENTRO DE SALUD | O190: 2020-06-13 | P190: https://www.contratos.gov.co/consultas/detalleProceso.do?numConstancia=20-4-10843622
A191: 190 | B191: 8737936 | C191: NOE ANIBAL PELAEZ GONZALEZ | D191: 2385-2020 | E191: REGENTE DE FARMACIA | F191: 01 de Junio 2020 | G191: 30 de Junio de 2020 | H191: 2280000 | I191: 2280000 | J191: REMUNERACION | K191: 2918 | L191: 3869 | M191: BETTY PERTUZ | N191: SUBGERENTE CIENTIFICO | O191: 2020-06-13 | P191: https://www.contratos.gov.co/consultas/detalleProceso.do?numConstancia=20-4-10843623
A192: 191 | B192: 39282489 | C192: NORIS SOFIA BERTEL PEREZ | D192: 2386-2020 | E192: PERSONAL LIMPIEZA Y ASEO URGENCIA | F192: 01 de Junio 2020 | G192: 30 de Junio de 2020 | H192: 1653600 | I192: 1653600 | J192: REMUNERACION | K192: 2919 | L192: 3870 | M192: JAIME ALVAREZ NORIEGA | N192: INGENIERO AMBIENTAL | O192: 2020-06-13 | P192: https://www.contratos.gov.co/consultas/detalleProceso.do?numConstancia=20-4-10843625
A193: 192 | B193: 8772224 | C193: OLAINER MONTERO CASTRO | D193: 2387-2020 | E193: LIDER DE FACTURACION EN CENTROS DE SALUD | F193: 01 de Junio 2020 | G193: 30 de Junio de 2020 | H193: 2160000 | I193: 2160000 | J193: HONORARIOS | K193: 2920 | L193: 3871 | M193: SERGIO BOVEA MARIN | N193: COORD CENTRO DE SALUD | O193: 2020-06-13 | P193: https://www.contratos.gov.co/consultas/detalleProceso.do?numConstancia=20-4-10843627
A194: 193 | B194: 72144602 | C194: RICARDO ISAAC OROZCO BARROS | D194: 2388-2020 | E194: CONDUCTOR DE AMBULANCIA | F194: 01 de Junio 2020 | G194: 30 de Junio de 2020 | H194: 2160000 | I194: =+H194*1 -> 2160000 | J194: REMUNERACION | K194: 2921 | L194: 3872 | M194: SERGIO BOVEA MARIN | N194: COORD CENTRO DE SALUD | O194: 2020-06-13 | P194: https://www.contratos.gov.co/consultas/detalleProceso.do?numConstancia=20-4-10843629
A195: 194 | B195: 22527122 | C195: RUBY DEL CARMEN BOSSIO HERRERA | D195: 2389-2020 | E195: AUXILIAR DE ENFERMERIA URGENCIAS | F195: 01 de Junio 2020 | G195: 30 de Junio de 2020 | H195: 1653600 | I195: 1653600 | J195: REMUNERACION | K195: 2922 | L195: 3873 | M195: SERGIO BOVEA MARIN | N195: COORD CENTRO DE SALUD | O195: 2020-06-13 | P195: https://www.contratos.gov.co/consultas/detalleProceso.do?numConstancia=20-4-10843630
A196: =+A195+1 -> 195 | B196: 1042426990 | C196: SANDRA MARCELA PEREZ BERMEJO | D196: 2390-2020 | E196: MEDICO DE URGENCIA | F196: 01 de Junio 2020 | G196: 30 de Junio de 2020 | H196: 3072000 | I196: 3072000 | J196: HONORARIOS | K196: 2923 | L196: 3874 | M196: SERGIO BOVEA MARIN | N196: COORD CENTRO DE SALUD | O196: 2020-06-13 | P196: https://www.contratos.gov.co/consultas/detalleProceso.do?numConstancia=20-4-10843631
A197: 196 | B197: 1042430978 | C197: TATIANA BARRIOSNUEVO CERA | D197: 2391-2020 | E197: AUXILIAR DE ENFERMERIA URGENCIAS | F197: 01 de Junio 2020 | G197: 30 de Junio de 2020 | H197: 1653600 | I197: 1653600 | J197: REMUNERACION | K197: 2924 | L197: 3875 | M197: SERGIO BOVEA MARIN | N197: COORD CENTRO DE SALUD | O197: 2020-06-13 | P197: https://www.contratos.gov.co/consultas/detalleProceso.do?numConstancia=20-4-10843632
A198: 197 | B198: 32874863 | C198: TATIANA PAEZ DE LA CRUZ | D198: 2392-2020 | E198: AUXILIAR DE ENFERMERIA URGENCIAS | F198: 01 de Junio 2020 | G198: 30 de Junio de 2020 | H198: 1653600 | I198: 1653600 | J198: REMUNERACION | K198: 2925 | L198: 3876 | M198: SERGIO BOVEA MARIN | N198: COORD CENTRO DE SALUD | O198: 2020-06-13 | P198: https://www.contratos.gov.co/consultas/detalleProceso.do?numConstancia=20-4-10843634
A199: 198 | B199: 32884590 | C199: TATIANA SUAREZ CABALLERO | D199: 2393-2020 | E199: AUXILIAR DE ENFERMERIA DE RUTA INTEGRAL MATERNO PERINATAL | F199: 01 de Junio 2020 | G199: 30 de Junio de 2020 | H199: 1399200 | I199: 1399200 | J199: REMUNERACION | K199: 2926 | L199: 3877 | M199: NILSA ARIZA MARQUEZ | N199: COORDINADOR PYP | O199: 2020-06-13 | P199: https://www.contratos.gov.co/consultas/detalleProceso.do?numConstancia=20-4-10843636
A200: 199 | B200: 1048271951 | C200: WENDY OFELIA BARRAZA PUA | D200: 2394-2020 | E200: AUXILIAR DE ENFERMERIA URGENCIAS | F200: 01 de Junio 2020 | G200: 30 de Junio de 2020 | H200: 1653600 | I200: 1653600 | J200: REMUNERACION | K200: 2927 | L200: 3878 | M200: SERGIO BOVEA MARIN | N200: COORD CENTRO DE SALUD | O200: 2020-06-13 | P200: https://www.contratos.gov.co/consultas/detalleProceso.do?numConstancia=20-4-10843637
... 269 more rows

Sheet PIC JUNIO 2020
A1: CEDULA | B1: NOMBRE Y APELLIDO | C1: OPS | D1: año | E1: #OPS AÑO | F1: OBJETO DEL CONTRATO | G1: FECHA INICIO | H1: FECHA TERMINACION | I1: VALOR MENSUAL | J1: VALOR TOTAL | K1: VALOR LETRAS total | L1: SUPERVISOR | M1: CARGO | N1: RUBRO PRESUPUESTAL | O1: CDP | P1: RP | Q1: SUPERVISION DEL CONTRATO | R1: FECHA SECOK | S1: LINK SECOP
A2: 22668428 | B2: ANABELL VELASQUEZ FERNANDEZ | C2: 178 | D2: 2020 -PIC | E2: 178-2020 -PIC | F2: COORDINADORA PIC | G2: 01 de Junio 2020 | H2: 30 de Junio de 2020 | I2: 5800000 | J2: =I2*1 -> 5800000 | K2: =PesosMN(J2) -> CINCO MILLONES OCHOCIENTOS MIL PESOS | L2: BETTY PERTUZ | M2: SUBGERENTE CIENTIFICO | N2: PIC | O2: 2694 | P2: 3645 | Q2: Subgerente Cientifico de la E.S.E. | R2: 2020-06-14 | S2: https://www.contratos.gov.co/consultas/detalleProceso.do?numConstancia=20-4-10844467
A3: 32874188 | B3: JALICSSA ARRIETA ORTEGA | C3: 179 | D3: 2020 -PIC | E3: 179-2020 -PIC | F3: APOYO GESTION PIC | G3: 01 de Junio 2020 | H3: 30 de Junio de 2020 | I3: 3000000 | J3: 3000000 | K3: =PesosMN(J3) -> TRES MILLONES PESOS | L3: ANABELL VELASQUEZ | M3: COORDINADORA PIC | N3: PIC | O3: 2695 | P3: 3646 | Q3: Coordinador PIC | R3: 2020-06-14 | S3: https://www.contratos.gov.co/consultas/detalleProceso.do?numConstancia=20-4-10844468
A4: 1045675584 | B4: ISOREIDA PEREZ PALMEIRA | C4: 180 | D4: 2020 -PIC | E4: 180-2020 -PIC | F4: ENFERMERA JEFE - LIDER APS -PIC | G4: 01 de Junio 2020 | H4: 30 de Junio de 2020 | I4: 2500000 | J4: =I4*1 -> 2500000 | K4: DOS MILLONES QUINIENTOS MIL PESOS | L4: ANABELL VELASQUEZ | M4: COORDINADORA PIC | N4: PIC | O4: 2696 | P4: 3647 | Q4: Coordinador PIC | R4: 2020-06-14 | S4: https://www.contratos.gov.co/consultas/detalleProceso.do?numConstancia=20-4-10844469
A5: 32744712 | B5: CARMEN MARIA CORONADO ESCORCIA | C5: 181 | D5: 2020 -PIC | E5: 181-2020 -PIC | F5: ENFERMERA JEFE -PIC | G5: 01 de Junio 2020 | H5: 30 de Junio de 2020 | I5: 2500000 | J5: 2500000 | K5: DOS MILLONES QUINIENTOS MIL PESOS | L5: ANABELL VELASQUEZ | M5: COORDINADORA PIC | N5: PIC | O5: 2697 | P5: 3648 | Q5: Coordinador PIC | R5: 2020-06-14 | S5: https://www.contratos.gov.co/consultas/detalleProceso.do?numConstancia=20-4-10844470
A6: 22506781 | B6: MILDRED TATIANA GOENAGA ALVARADO | C6: 182 | D6: 2020 -PIC | E6: 182-2020 -PIC | F6: ENFERMERA JEFE VACUNACION | G6: 01 de Junio 2020 | H6: 30 de Junio de 2020 | I6: 2500000 | J6: 2500000 | K6: DOS MILLONES QUINIENTOS MIL PESOS | L6: ANABELL VELASQUEZ | M6: COORDINADORA PIC | N6: PIC | O6: 2698 | P6: 3649 | Q6: Coordinador PIC | R6: 2020-06-14 | S6: https://www.contratos.gov.co/consultas/detalleProceso.do?numConstancia=20-4-10844471
A7: 22645320 | B7: ADRIANA CRISTINA GARCIA CARRILLO | C7: 183 | D7: 2020 -PIC | E7: 183-2020 -PIC | F7: FISIOTERAPEUTA | G7: 01 de Junio 2020 | H7: 30 de Junio de 2020 | I7: 2500000 | J7: 2500000 | K7: DOS MILLONES QUINIENTOS MIL PESOS | L7: ANABELL VELASQUEZ | M7: COORDINADORA PIC | N7: PIC | O7: 2699 | P7: 3650 | Q7: Coordinador PIC | R7: 2020-06-14 | S7: https://www.contratos.gov.co/consultas/detalleProceso.do?numConstancia=20-4-10844472
A8: 32777087 | B8: ROSA MARGARITA SEVILLA | C8: 184 | D8: 2020 -PIC | E8: 184-2020 -PIC | F8: NUTRICIONISTA | G8: 01 de Junio 2020 | H8: 30 de Junio de 2020 | I8: 2500000 | J8: 2500000 | K8: DOS MILLONES QUINIENTOS MIL PESOS | L8: ANABELL VELASQUEZ | M8: COORDINADORA PIC | N8: PIC | O8: 2700 | P8: 3651 | Q8: Coordinador PIC | R8: 2020-06-14 | S8: https://www.contratos.gov.co/consultas/detalleProceso.do?numConstancia=20-4-10844473
A9: 1065575009 | B9: ANDREA TATIANA SERRANO MOLINA | C9: 185 | D9: 2020 -PIC | E9: 185-2020 -PIC | F9: PSICOLOGO | G9: 01 de Junio 2020 | H9: 30 de Junio de 2020 | I9: 2500000 | J9: 2500000 | K9: DOS MILLONES QUINIENTOS MIL PESOS | L9: ANABELL VELASQUEZ | M9: COORDINADORA PIC | N9: PIC | O9: 2701 | P9: 3652 | Q9: Coordinador PIC | R9: 2020-06-14 | S9: https://www.contratos.gov.co/consultas/detalleProceso.do?numConstancia=20-4-10844474
A10: 22617307 | B10: ETILVIA TERESA DONADO CABALLERO | C10: 186 | D10: 2020 -PIC | E10: 186-2020 -PIC | F10: PSICOLOGO | G10: 01 de Junio 2020 | H10: 30 de Junio de 2020 | I10: 2500000 | J10: 2500000 | K10: DOS MILLONES QUINIENTOS MIL PESOS | L10: ANABELL VELASQUEZ | M10: COORDINADORA PIC | N10: PIC | O10: 2702 | P10: 3653 | Q10: Coordinador PIC | R10: 2020-06-14 | S10: https://www.contratos.gov.co/consultas/detalleProceso.do?numConstancia=20-4-10844475
A11: 1140873504 | B11: OLMAN JOSHUA BULA TORRES | C11: 187 | D11: 2020 -PIC | E11: 187-2020 -PIC | F11: PSICOLOGO | G11: 01 de Junio 2020 | H11: 30 de Junio de 2020 | I11: 2500000 | J11: 2500000 | K11: DOS MILLONES QUINIENTOS MIL PESOS | L11: ANABELL VELASQUEZ | M11: COORDINADORA PIC | N11: PIC | O11: 2703 | P11: 3654 | Q11: Coordinador PIC | R11: 2020-06-14 | S11: https://www.contratos.gov.co/consultas/detalleProceso.do?numConstancia=20-4-10844476
A12: 1046872703 | B12: LUCELIS DE LA HOZ ESCORCIA | C12: 188 | D12: 2020 -PIC | E12: 188-2020 -PIC | F12: AUXILIAR ADMINISTRATIVO-PIC | G12: 01 de Junio 2020 | H12: 30 de Junio de 2020 | I12: 1900000 | J12: 1900000 | K12: UN MILLON NOVECIENTOS MIL PESOS | L12: ANABELL VELASQUEZ | M12: COORDINADORA PIC | N12: PIC | O12: 2704 | P12: 3655 | Q12: Coordinador PIC | R12: 2020-06-14 | S12: https://www.contratos.gov.co/consultas/detalleProceso.do?numConstancia=20-4-10844477
A13: 72429089 | B13: EDER DE JESUS SEGURA BRAVO | C13: 189 | D13: 2020 -PIC | E13: 189-2020 -PIC | F13: HIGIENISTA ORAL | G13: 01 de Junio 2020 | H13: 30 de Junio de 2020 | I13: 1900000 | J13: 1900000 | K13: UN MILLON NOVECIENTOS MIL PESOS | L13: ANABELL VELASQUEZ | M13: COORDINADORA PIC | N13: PIC | O13: 2705 | P13: 3656 | Q13: Coordinador PIC | R13: 2020-06-14 | S13: https://www.contratos.gov.co/consultas/detalleProceso.do?numConstancia=20-4-10844478
A14: 72271553 | B14: DAVID ENRIQUE AGRESOT DE LA CRUZ | C14: 190 | D14: 2020 -PIC | E14: 190-2020 -PIC | F14: LIDER DE ZOONOSIS | G14: 01 de Junio 2020 | H14: 30 de Junio de 2020 | I14: 1900000 | J14: 1900000 | K14: UN MILLON NOVECIENTOS MIL PESOS | L14: ANABELL VELASQUEZ | M14: COORDINADORA PIC | N14: PIC | O14: 2706 | P14: 3657 | Q14: Coordinador PIC | R14: 2020-06-14 | S14: https://www.contratos.gov.co/consultas/detalleProceso.do?numConstancia=20-4-10844481
A15: 32876278 | B15: CLAUDIA MARTINEZ RIVAS | C15: 191 | D15: 2020 -PIC | E15: 191-2020 -PIC | F15: AGENTE PRIMARIA EN SALUD-APS | G15: 01 de Junio 2020 | H15: 30 de Junio de 2020 | I15: 1400000 | J15: 1400000 | K15: UN MILLON CUATROCIENTOS MIL PESOS | L15: ANABELL VELASQUEZ | M15: COORDINADORA PIC | N15: PIC | O15: 2707 | P15: 3658 | Q15: Coordinador PIC | R15: 2020-06-14 | S15: https://www.contratos.gov.co/consultas/detalleProceso.do?numConstancia=20-4-10844483
A16: 1143136225 | B16: MARTA CECILIA MARIN ZAPATA | C16: 192 | D16: 2020 -PIC | E16: 192-2020 -PIC | F16: AGENTE PRIMARIA EN SALUD-APS | G16: 01 de Junio 2020 | H16: 30 de Junio de 2020 | I16: 1400000 | J16: 1400000 | K16: UN MILLON CUATROCIENTOS MIL PESOS | L16: ANABELL VELASQUEZ | M16: COORDINADORA PIC | N16: PIC | O16: 2708 | P16: 3659 | Q16: Coordinador PIC | R16: 2020-06-14 | S16: https://www.contratos.gov.co/consultas/detalleProceso.do?numConstancia=20-4-10844484
A17: 1043931882 | B17: AREIDIS MEDINA SANJUAN | C17: 193 | D17: 2020 -PIC | E17: 193-2020 -PIC | F17: AGENTE PRIMARIA EN SALUD-APS | G17: 01 de Junio 2020 | H17: 30 de Junio de 2020 | I17: 1400000 | J17: 1400000 | K17: UN MILLON CUATROCIENTOS MIL PESOS | L17: ANABELL VELASQUEZ | M17: COORDINADORA PIC | N17: PIC | O17: 2709 | P17: 3660 | Q17: Coordinador PIC | R17: 2020-06-14 | S17: https://www.contratos.gov.co/consultas/detalleProceso.do?numConstancia=20-4-10844485
A18: 22543666 | B18: DENNYS MARIELA ARZUZAR GALVIS | C18: 194 | D18: 2020 -PIC | E18: 194-2020 -PIC | F18: AGENTE PRIMARIA EN SALUD-APS | G18: 01 de Junio 2020 | H18: 30 de Junio de 2020 | I18: 1400000 | J18: 1400000 | K18: UN MILLON CUATROCIENTOS MIL PESOS | L18: ANABELL VELASQUEZ | M18: COORDINADORA PIC | N18: PIC | O18: 2710 | P18: 3661 | Q18: Coordinador PIC | R18: 2020-06-14 | S18: https://www.contratos.gov.co/consultas/detalleProceso.do?numConstancia=20-4-10844486
A19: 44160070 | B19: GLORIA ZAPATA REZA | C19: 195 | D19: 2020 -PIC | E19: 195-2020 -PIC | F19: AGENTE PRIMARIA EN SALUD-APS | G19: 01 de Junio 2020 | H19: 30 de Junio de 2020 | I19: 1400000 | J19: 1400000 | K19: UN MILLON CUATROCIENTOS MIL PESOS | L19: ANABELL VELASQUEZ | M19: COORDINADORA PIC | N19: PIC | O19: 2711 | P19: 3662 | Q19: Coordinador PIC | R19: 2020-06-14 | S19: https://www.contratos.gov.co/consultas/detalleProceso.do?numConstancia=20-4-10844488
A20: 44152281 | B20: KAREN JOHANA JIMENEZ RAMOS | C20: 196 | D20: 2020 -PIC | E20: 196-2020 -PIC | F20: AGENTE PRIMARIA EN SALUD-APS | G20: 01 de Junio 2020 | H20: 30 de Junio de 2020 | I20: 1400000 | J20: 1400000 | K20: UN MILLON CUATROCIENTOS MIL PESOS | L20: ANABELL VELASQUEZ | M20: COORDINADORA PIC | N20: PIC | O20: 2712 | P20: 3663 | Q20: Coordinador PIC | R20: 2020-06-14 | S20: https://www.contratos.gov.co/consultas/detalleProceso.do?numConstancia=20-4-10844489
A21: 44150081 | B21: MARY LUZ GUERRERO CERVANTES | C21: 197 | D21: 2020 -PIC | E21: 197-2020 -PIC | F21: AGENTE PRIMARIA EN SALUD-APS | G21: 01 de Junio 2020 | H21: 30 de Junio de 2020 | I21: 1400000 | J21: 1400000 | K21: UN MILLON CUATROCIENTOS MIL PESOS | L21: ANABELL VELASQUEZ | M21: COORDINADORA PIC | N21: PIC | O21: 2713 | P21: 3664 | Q21: Coordinador PIC | R21: 2020-06-14 | S21: https://www.contratos.gov.co/consultas/detalleProceso.do?numConstancia=20-4-10844492
A22: 1002162856 | B22: NICOLL PATRICIA NIEBLES RIVERA | C22: 198 | D22: 2020 -PIC | E22: 198-2020 -PIC | F22: AGENTE PRIMARIA EN SALUD-APS | G22: 01 de Junio 2020 | H22: 30 de Junio de 2020 | I22: 1400000 | J22: 1400000 | K22: UN MILLON CUATROCIENTOS MIL PESOS | L22: ANABELL VELASQUEZ | M22: COORDINADORA PIC | N22: PIC | O22: 2714 | P22: 3665 | Q22: Coordinador PIC | R22: 2020-06-14 | S22: https://www.contratos.gov.co/consultas/detalleProceso.do?numConstancia=20-4-10844493
A23: 32758730 | B23: NUBIA ESTELA CANO GUILLEN | C23: 199 | D23: 2020 -PIC | E23: 199-2020 -PIC | F23: AGENTE PRIMARIA EN SALUD-APS | G23: 01 de Junio 2020 | H23: 30 de Junio de 2020 | I23: 1400000 | J23: 1400000 | K23: UN MILLON CUATROCIENTOS MIL PESOS | L23: ANABELL VELASQUEZ | M23: COORDINADORA PIC | N23: PIC | O23: 2715 | P23: 3666 | Q23: Coordinador PIC | R23: 2020-06-14 | S23: https://www.contratos.gov.co/consultas/detalleProceso.do?numConstancia=20-4-10844494
A24: 1042449446 | B24: SAILIS MARIA FRIA VEGA | C24: 200 | D24: 2020 -PIC | E24: 200-2020 -PIC | F24: AGENTE PRIMARIA EN SALUD-APS | G24: 01 de Junio 2020 | H24: 30 de Junio de 2020 | I24: 1400000 | J24: 1400000 | K24: UN MILLON CUATROCIENTOS MIL PESOS | L24: ANABELL VELASQUEZ | M24: COORDINADORA PIC | N24: PIC | O24: 2716 | P24: 3667 | Q24: Coordinador PIC | R24: 2020-06-14 | S24: https://www.contratos.gov.co/consultas/detalleProceso.do?numConstancia=20-4-10844495
A25: 1047337919 | B25: CANDY ISABEL ROJAS SARMIENTO | C25: 201 | D25: 2020 -PIC | E25: 201-2020 -PIC | F25: AGENTE PRIMARIA EN SALUD-ZOONOSIS | G25: 01 de Junio 2020 | H25: 30 de Junio de 2020 | I25: 1400000 | J25: 1400000 | K25: UN MILLON CUATROCIENTOS MIL PESOS | L25: ANABELL VELASQUEZ | M25: COORDINADORA PIC | N25: PIC | O25: 2717 | P25: 3668 | Q25: Coordinador PIC | R25: 2020-06-14 | S25: https://www.contratos.gov.co/consultas/detalleProceso.do?numConstancia=20-4-10844496
A26: 8784783 | B26: DAIRO MANRIQUEZ MORALES BOVEA | C26: 202 | D26: 2020 -PIC | E26: 202-2020 -PIC | F26: AGENTE PRIMARIA EN SALUD-ZOONOSIS | G26: 01 de Junio 2020 | H26: 30 de Junio de 2020 | I26: 1400000 | J26: 1400000 | K26: UN MILLON CUATROCIENTOS MIL PESOS | L26: ANABELL VELASQUEZ | M26: COORDINADORA PIC | N26: PIC | O26: 2718 | P26: 3669 | Q26: Coordinador PIC | R26: 2020-06-14 | S26: https://www.contratos.gov.co/consultas/detalleProceso.do?numConstancia=20-4-10844498
A27: 3779189 | B27: JAIME ENRIQUE MARQUEZ VILLAFAÑE | C27: 203 | D27: 2020 -PIC | E27: 203-2020 -PIC | F27: AGENTE PRIMARIA EN SALUD-ZOONOSIS | G27: 01 de Junio 2020 | H27: 30 de Junio de 2020 | I27: 1400000 | J27: 1400000 | K27: UN MILLON CUATROCIENTOS MIL PESOS | L27: ANABELL VELASQUEZ | M27: COORDINADORA PIC | N27: PIC | O27: 2719 | P27: 3670 | Q27: Coordinador PIC | R27: 2020-06-14 | S27: https://www.contratos.gov.co/consultas/detalleProceso.do?numConstancia=20-4-10844499
A28: 32829868 | B28: JUDITH ISABEL ARCON MEDINA | C28: 204 | D28: 2020 -PIC | E28: 204-2020 -PIC | F28: AGENTE PRIMARIA EN SALUD-ZOONOSIS | G28: 01 de Junio 2020 | H28: 30 de Junio de 2020 | I28: 1400000 | J28: 1400000 | K28: UN MILLON CUATROCIENTOS MIL PESOS | L28: ANABELL VELASQUEZ | M28: COORDINADORA PIC | N28: PIC | O28: 2720 | P28: 3671 | Q28: Coordinador PIC | R28: 2020-06-14 | S28: https://www.contratos.gov.co/consultas/detalleProceso.do?numConstancia=20-4-10844500
A29: 1046698080 | B29: LUIS ALFREDO CANTILLO CABALLERO | C29: 205 | D29: 2020 -PIC | E29: 205-2020 -PIC | F29: AGENTE PRIMARIA EN SALUD-ZOONOSIS | G29: 01 de Junio 2020 | H29: 30 de Junio de 2020 | I29: 1400000 | J29: 1400000 | K29: UN MILLON CUATROCIENTOS MIL PESOS | L29: ANABELL VELASQUEZ | M29: COORDINADORA PIC | N29: PIC | O29: 2721 | P29: 3672 | Q29: Coordinador PIC | R29: 2020-06-14 | S29: https://www.contratos.gov.co/consultas/detalleProceso.do?numConstancia=20-4-10844501
A30: 1043185696 | B30: MANUEL ZULBARAN | C30: 206 | D30: 2020 -PIC | E30: 206-2020 -PIC | F30: AGENTE PRIMARIA EN SALUD-ZOONOSIS | G30: 01 de Junio 2020 | H30: 30 de Junio de 2020 | I30: 1400000 | J30: 1400000 | K30: UN MILLON CUATROCIENTOS MIL PESOS | L30: ANABELL VELASQUEZ | M30: COORDINADORA PIC | N30: PIC | O30: 2722 | P30: 3673 | Q30: Coordinador PIC | R30: 2020-06-14 | S30: https://www.contratos.gov.co/consultas/detalleProceso.do?numConstancia=20-4-10844503
A31: 30895455 | B31: MARIA CONCEPCION ESPRIELLA BUELVAS | C31: 207 | D31: 2020 -PIC | E31: 207-2020 -PIC | F31: AGENTE PRIMARIA EN SALUD-ZOONOSIS | G31: 01 de Junio 2020 | H31: 30 de Junio de 2020 | I31: 1400000 | J31: 1400000 | K31: UN MILLON CUATROCIENTOS MIL PESOS | L31: ANABELL VELASQUEZ | M31: COORDINADORA PIC | N31: PIC | O31: 2723 | P31: 3674 | Q31: Coordinador PIC | R31: 2020-06-14 | S31: https://www.contratos.gov.co/consultas/detalleProceso.do?numConstancia=20-4-10844504
A32: 1143442239 | B32: SAYURIS OCAMPO GARCIA | C32: 208 | D32: 2020 -PIC | E32: 208-2020 -PIC | F32: AGENTE PRIMARIA EN SALUD-ZOONOSIS | G32: 01 de Junio 2020 | H32: 30 de Junio de 2020 | I32: 1400000 | J32: 1400000 | K32: UN MILLON CUATROCIENTOS MIL PESOS | L32: ANABELL VELASQUEZ | M32: COORDINADORA PIC | N32: PIC | O32: 2724 | P32: 3675 | Q32: Coordinador PIC | R32: 2020-06-14 | S32: https://www.contratos.gov.co/consultas/detalleProceso.do?numConstancia=20-4-10844506
A33: 32872420 | B33: LUZ MARINA GARIZAO TAPIA | C33: 209 | D33: 2020 -PIC | E33: 209-2020 -PIC | F33: AGENTE PRIMARIA EN SALUD-ZOONOSIS | G33: 01 de Junio 2020 | H33: 30 de Junio de 2020 | I33: 1400000 | J33: 1400000 | K33: UN MILLON CUATROCIENTOS MIL PESOS | L33: ANABELL VELASQUEZ | M33: COORDINADORA PIC | N33: PIC | O33: 2725 | P33: 3676 | Q33: Coordinador PIC | R33: 2020-06-14 | S33: https://www.contratos.gov.co/consultas/detalleProceso.do?numConstancia=20-4-10844507
A34: 1042417608 | B34: KELLY DEL CARMEN PARDO RODRIGUEZ | C34: 211 | D34: 211- 2020 -PIC | E34: 211-2020 -PIC | F34: AUXILIAR DE ENFERMERIA - VACUNACION | G34: 01 de Junio 2020 | H34: 30 de Junio de 2020 | I34: 1400000 | J34: 1400000 | K34: UN MILLON CUATROCIENTOS MIL PESOS | L34: ANABELL VELASQUEZ | M34: COORDINADORA PIC | N34: PIC | O34: 2727 | P34: 3678 | Q34: Coordinador PIC | R34: 2020-06-14 | S34: https://www.contratos.gov.co/consultas/detalleProceso.do?numConstancia=20-4-10844509

Sheet CONTRATOS COVIC 19- JUNIO 2020
B1: LISTADO DE CONTRATACION OPS PERSONAL ASISTENCIAL EMERGENCIA COVIC 19- TERMINAL DE TRANSPORTE Y AEROPUERTO
A3: NO | B3: CEDULA | C3: NOMBRES APELLIDOS CONTRATISTA | D3: OPS | E3: ops #año | F3: OBJETO DEL CONTRATO | G3: FECHA INICIO | H3: FECHA TERMINACION | I3: VALOR MENSUAL | J3: VALOR TOTAL | K3: SUPERVISOR | L3: CARGO | M3: RUBRO | N3: CDP | O3: RP | P3: FECHA SECOP | Q3: LINK SECOP
A4: 3 | B4: 1045729651 | C4: KAROLAY PAOLA GARCIA OSPINO | D4: 2435 | E4: 2435-2020-COVIC -19 | F4: MEDICO- EMERGENCIA COVIC 19 | G4: 01 de Junio 2020 | H4: 30 de Junio de 2020 | I4: 4240000 | J4: =+I4*1 -> 4240000 | K4: CESAR ARRIETA | L4: COORDINADOR URGENCIAS | M4: HONORARIOS | N4: 2968 | O4: 3919 | P4: 2020-06-14 | Q4: https://www.contratos.gov.co/consultas/detalleProceso.do?numConstancia=20-4-10844466
